Cogmind - Beta 16.1 @@@ ROGUE MODE // 2026.03.31 @ 17:03:50 Player: the Result: Escaped! Performance ------------- Evolutions (9) 4500 Regions Visited (36) 7200 Robots Destroyed (223) 1115 Value Destroyed (9885) 9885 Prototype IDs (63) 1260 Alien Tech Used (0) 0 Bonus (10615) 10615 TOTAL SCORE: 34575 Bonus ------- Pacifist 564 High Alert Combat Kills 631 Follower Combat Kills 3766 Network Hubs Disabled 600 Aligned with FarCom 300 Met Data Miner 300 Met Warlord at Base 500 MAIN.C Attacked Warlord 500 Warlord Defense Kills 54 Built Enhanced Grunts 300 Met R17 at Cetus 500 Met R17 at Research 2000 Met Warlord at Research 2000 Win 3000 Friendly Fire -4400 Cogmind --------- Core Integrity 1556/1600 Matter 275/300 Energy 112/625 System Corruption 0% Temperature Cool (13) Movement Walking (100) Location To Epsilon Eridani Parts ------- > --- POWER (3) -------- Heavy Antimatter Reactor Compact Particle Reactor Improved Quantum Reactor > --- PROPULSION (8) --- Biometal Leg Biometal Leg Biometal Leg Biometal Leg Enhanced Biometal Leg Enhanced Biometal Leg Enhanced Biometal Leg Centrium Leg > --- UTILITY (11) ----- Huge Storage Unit Advanced Melee Analysis Suite Experimental Melee Analysis Suite Experimental Melee Analysis Suite Nanoactuators Advanced Actuator Array Advanced Force Booster Centrium Medium Armor Plating Improved Force Field Advanced Hacking Suite Advanced Hacking Suite > --- WEAPON (3) ------- Phasing Sabre Particle Cleaver Enhanced Force Lance > --- INVENTORY (25) --- Heavy Antimatter Reactor Heavy Antimatter Reactor Vortex Chain Reactor Biometal Leg Biometal Leg Biometal Leg Centrium Leg Long-range Terrain Scanner Experimental Core Analyzer Nanoactuators Advanced Actuator Array Centrium Medium Armor Plating Centrium Medium Armor Plating Graphene Brace Thermal Barrier Stealth Drone Bay (2/2) Powered Hammer Phasing Sabre Plasma Lance Peak State ------------ > --- POWER ------------ Heavy Antimatter Reactor Compact Particle Reactor Improved Quantum Reactor > --- PROPULSION ------- Biometal Leg Biometal Leg Biometal Leg Biometal Leg Enhanced Biometal Leg Enhanced Biometal Leg Enhanced Biometal Leg Centrium Leg > --- UTILITY ---------- Huge Storage Unit Advanced Melee Analysis Suite Experimental Melee Analysis Suite Experimental Melee Analysis Suite Nanoactuators Advanced Actuator Array Advanced Force Booster Centrium Medium Armor Plating Improved Force Field Advanced Hacking Suite Advanced Hacking Suite > --- WEAPON ----------- Phasing Sabre Particle Cleaver Enhanced Force Lance > --- INVENTORY -------- Heavy Antimatter Reactor Heavy Antimatter Reactor Vortex Chain Reactor Biometal Leg Biometal Leg Biometal Leg Centrium Leg Long-range Terrain Scanner Experimental Core Analyzer Nanoactuators Advanced Actuator Array Centrium Medium Armor Plating Centrium Medium Armor Plating Graphene Brace Thermal Barrier Stealth Drone Bay Powered Hammer Phasing Sabre Plasma Lance [Rating: 207] Favorites ----------- Power Reinforced Antimatter Reactor Engine F-cell Engine Power Core Enhanced Fission Core Reactor Reinforced Antimatter Reactor Propulsion Enhanced Biometal Leg Treads Light Treads Leg Enhanced Biometal Leg Wheel Armored Wheel Flight Unit Improved VTOL Module Utility Advanced Melee Analysis Suite Device Nanoactuators Storage Large Storage Unit Processor Advanced Melee Analysis Suite Hackware Hacking Suite Protection Improved Heavy Armor Plating Weapon Shock Maul Impact Weapon Shock Maul Slashing Weapon Chainsword Piercing Weapon Enhanced Force Lance Build | -11 -10 -10 -9 -9 -9 -8 -8 -7 -7 -7 -7 -7 -7 -6 -6 -6 -6 -6 -6 -6 -5 -5 -5 -5 -5 -4 -4 -4 -4 -4 -4 -4 -4 -3 -2 -1 ------- Run | Yrd Mat Min Mat Min Exi Min Mat Fac Was Fac Low Low Zio Pro Fac Was Fac Low Low Dat Pro Fac Upp Upp War Pro Fac Was Fac Ext Cet Arc Hub Res Res Acc Slots Evolved 18 | . . . 2 . . . 2 2 . . . . . . 2 . . . . . . 2 . . . . 2 . . . . . . 2 2 2 Power 2 | . . . . . . . . 1 . . . . . . . . . . . . . . . . . . . . . . . . . . 1 . Propulsion 6 | . . . 2 . . . . . . . . . . . . . . . . . . 1 . . . . 1 . . . . . . 1 1 . Utility 9 | . . . . . . . 2 1 . . . . . . 1 . . . . . . 1 . . . . 1 . . . . . . 1 . 2 Weapon 1 | . . . . . . . . . . . . . . . 1 . . . . . . . . . . . . . . . . . . . . . Parts Attached 206 | 2 . . 2 1 . 1 19 4 4 15 1 2 3 19 8 6 7 2 . . . 14 3 . 4 3 5 . 14 10 3 6 4 13 28 3 Power 26 | . . . . . . . 2 1 1 2 . 1 . 4 3 . 1 . . . . 2 . . . . 1 . . 2 1 . . 2 3 . Engine 11 | . . . . . . . 2 1 1 . . . . 4 3 . . . . . . . . . . . . . . . . . . . . . Core 3 | . . . . . . . . . . . . 1 . . . . . . . . . 2 . . . . . . . . . . . . . . Reactor 12 | . . . . . . . . . . 2 . . . . . . 1 . . . . . . . . . 1 . . 2 1 . . 2 3 . Propulsion 59 | 2 . . 2 . . 1 11 . 3 6 . . . 9 3 3 . . . . . 2 1 . 1 1 . . . 1 . . . 1 12 . Treads 8 | 2 . . . . . 1 5 . . . . . . . . . . . . . . . . . . . . . . . . . . . . . Leg 49 | . . . 2 . . . 4 . 3 6 . . . 9 3 3 . . . . . 2 1 . 1 1 . . . 1 . . . 1 12 . Wheel 1 | . . . . . . . 1 . . . . . . . . . . . . . . . . . . . . . . . . . . . . . Hover . | . . . . . . . . . . . . . . . . . . . . . . . . . . . . . . . . . . . . . Flight 1 | . . . . . . . 1 . . . . . . . . . . . . . . . . . . . . . . . . . . . . . Utility 96 | . . . . 1 . . 4 3 . 5 1 1 1 5 2 2 4 2 . . . 7 1 . 2 2 4 . 14 6 2 4 4 8 9 2 Device 41 | . . . . 1 . . . 1 . 2 1 . . 2 1 . 2 2 . . . 4 . . 1 1 1 . 7 2 . 4 . 3 5 1 Storage 4 | . . . . . . . 1 . . . . . . . . . 1 . . . . . . . . . . . 1 1 . . . . . . Processor 23 | . . . . . . . 1 2 . 1 . 1 . . . 1 1 . . . . 1 . . . 1 3 . 3 . . . 1 4 3 . Hackware 10 | . . . . . . . 1 . . . . . . . . . . . . . . 1 . . . . . . 2 . . . 3 1 1 1 Protection 18 | . . . . . . . 1 . . 2 . . 1 3 1 1 . . . . . 1 1 . 1 . . . 1 3 2 . . . . . Artifact . | . . . . . . . . . . . . . . . . . . . . . . . . . . . . . . . . . . . . . Weapon 25 | . . . . . . . 2 . . 2 . . 2 1 . 1 2 . . . . 3 1 . 1 . . . . 1 . 2 . 2 4 1 Energy Gun . | . . . . . . . . . . . . . . . . . . . . . . . . . . . . . . . . . . . . . Energy Cannon . | . . . . . . . . . . . . . . . . . . . . . . . . . . . . . . . . . . . . . Ballistic Gun . | . . . . . . . . . . . . . . . . . . . . . . . . . . . . . . . . . . . . . Ballistic Cannon . | . . . . . . . . . . . . . . . . . . . . . . . . . . . . . . . . . . . . . Launcher . | . . . . . . . . . . . . . . . . . . . . . . . . . . . . . . . . . . . . . Special Weapon . | . . . . . . . . . . . . . . . . . . . . . . . . . . . . . . . . . . . . . Impact Weapon 5 | . . . . . . . . . . . . . 1 . . . 1 . . . . . 1 . . . . . . . . 1 . 1 . . Slashing Weapon 17 | . . . . . . . 2 . . 2 . . 1 1 . . 1 . . . . 3 . . 1 . . . . 1 . 1 . . 3 1 Piercing Weapon 3 | . . . . . . . . . . . . . . . . 1 . . . . . . . . . . . . . . . . . 1 1 . Special Melee Weapon . | . . . . . . . . . . . . . . . . . . . . . . . . . . . . . . . . . . . . . Unidentified Prototypes 28 | . . . . . . . 1 . . . . . . 2 1 . 2 . . . . 2 . . 3 . . . . 1 1 . 1 4 10 . Corrupted Parts 3 | . . . . . . . . . . . . . . . . . . . . . . . . . . 1 . . . . . 1 . . 1 . System Corruption 12 | . . . . . . . . . . . . . . . . . . . . . . . . . . 3 . . . . . 8 . . 1 . Parts Lost 44 | . . . . 2 . . 3 . 6 3 . 3 . 4 . . 1 . . . . 5 4 . 1 . . 2 1 3 1 . 1 1 2 1 Power 2 | . . . . . . . . . 1 . . . . 1 . . . . . . . . . . . . . . . . . . . . . . Propulsion 16 | . . . . 2 . . 3 . 4 2 . 2 . 1 . . . . . . . . 2 . . . . . . . . . . . . . Utility 19 | . . . . . . . . . 1 1 . 1 . 2 . . 1 . . . . 3 1 . 1 . . 2 1 2 . . 1 1 1 . Weapon 7 | . . . . . . . . . . . . . . . . . . . . . . 2 1 . . . . . . 1 1 . . . 1 1 Highest Loss Streak 6 | . . . . 2 . . 1 . 6 2 . 2 . 2 . . 1 . . . . 2 4 . 1 . . 2 1 1 1 . 1 1 1 1 To Critical Strikes 2 | . . . . . . . . . . . . . . . . . . . . . . 1 . . . . . . . 1 . . . . . . Average Backups 12 | 1 4 4 4 3 3 4 8 11 11 14 12 12 14 13 12 12 10 10 10 10 10 8 6 5 9 11 10 10 13 17 22 21 20 19 22 20 Power 2 | . 1 1 1 1 1 1 1 1 . . 1 1 2 1 2 3 2 2 2 2 2 2 2 2 2 3 2 2 2 2 5 4 4 4 3 3 Propulsion 1 | . 2 2 2 . 1 1 3 3 1 2 . . . . 1 1 . 1 1 1 1 1 1 1 2 3 2 2 2 4 3 2 2 3 4 4 Utility 6 | . 1 1 1 1 1 2 2 5 7 7 7 7 8 7 6 5 4 5 5 5 5 2 1 1 2 3 5 5 8 10 13 14 13 9 11 10 Weapon 2 | . . . . . . . . 2 2 3 4 4 4 3 2 2 2 2 2 2 2 1 1 1 1 1 1 1 . . . . 1 2 3 3 Tool/Special . | . . . . . . . . . . . . . . . . . . . . . . . . . . . . . . . . . . . . . Unused Backups 53 | . . 1 1 1 1 . 3 . . 1 . . 1 3 1 2 6 . . . 1 2 . . 1 1 . 1 1 2 3 3 . 3 5 9 Power 7 | . . . 1 . . . . . . . . . . . 1 . . . . . . . . . . . . . . . 1 1 . . . 3 Propulsion 20 | . . . . 1 . . 3 . . 1 . . . . . 1 . . . . . . . . 1 . . . . 2 1 1 . 3 3 3 Utility 21 | . . 1 . . 1 . . . . . . . 1 2 . 1 4 . . . 1 2 . . . . . 1 . . 1 1 . . 2 3 Weapon 5 | . . . . . . . . . . . . . . 1 . . 2 . . . . . . . . 1 . . 1 . . . . . . . Tool/Special . | . . . . . . . . . . . . . . . . . . . . . . . . . . . . . . . . . . . . . Average Slot Usage (%) 77 | . 28 28 22 42 22 27 70 99 81 87 92 76 76 79 91 80 71 72 73 73 72 73 75 75 74 76 77 74 83 82 81 83 83 84 89 99 Engine 1 | . . . . . . . 3 14 9 . . . . 2 6 6 6 6 6 6 6 . . . . . . . . . . . . . . . Core 1 | . . . . . . . . . . . . 3 7 4 . . . . . . . 4 5 5 5 5 2 . . . . . . . . . Reactor 5 | . . . . . . . . . . 5 7 3 . . 4 6 6 6 6 6 6 5 5 5 5 5 7 10 10 10 10 10 10 9 12 12 Treads 2 | . 28 28 22 20 11 16 28 . . . . . . . . . . . . . . . . . . . . . . . . . . . . . Leg 14 | . . . . 20 11 11 3 30 22 27 30 15 15 18 26 13 6 6 6 6 6 9 10 11 11 11 15 15 15 15 15 15 15 19 26 32 Device 8 | . . . . . . . . 7 9 3 7 7 6 12 12 7 8 13 13 13 12 14 10 10 9 5 6 5 10 9 7 9 5 13 9 12 Storage 5 | . . . . . . . 4 7 7 7 7 7 7 7 6 6 6 6 6 6 6 5 5 5 5 5 5 5 5 5 5 5 5 4 4 4 Processor 12 | . . . . . . . 3 7 7 13 15 16 23 14 6 11 8 6 6 6 6 6 11 11 11 11 19 17 20 21 21 21 21 14 14 15 Hackware 1 | . . . . . . . 7 7 7 7 7 5 . . . . . . . . . . . . . . . . 1 . . . 5 3 4 7 Protection 4 | . . . . . . . 3 6 1 4 . . . 2 6 6 6 6 6 6 6 5 5 5 5 10 5 5 2 5 7 4 3 4 3 4 Impact Weapon 5 | . . . . . . . . . . . . . 6 7 6 4 6 6 6 6 6 5 8 11 11 11 10 10 9 6 5 5 5 4 3 . Slashing Weapon 8 | . . . . . . . 12 15 12 15 15 15 7 7 13 10 6 5 6 6 6 8 7 5 5 5 5 5 5 7 7 9 10 9 7 7 Piercing Weapon 1 | . . . . . . . . . . . . . . . . 4 6 6 6 6 6 1 . . . . . . . . . . . . . 4 Peak Build Rating 207 | 2 2 2 4 5 2 5 42 50 50 56 45 45 39 69 79 93 93 96 92 92 96 107 107 100 118 119 131 131 133 140 145 145 145 165 195 207 Average Rating 93 | 1 2 2 2 3 2 3 23 49 39 45 45 37 36 41 75 86 89 92 92 92 92 99 102 99 108 117 130 127 127 132 139 143 140 161 184 204 On Entrance 76 | . 2 2 2 4 2 2 5 42 50 27 45 45 36 36 69 76 93 92 92 92 92 92 107 91 100 118 115 131 121 132 140 136 145 142 163 193 Avg Prop Armor Cover (%) 39 | 41 41 41 41 43 40 41 43 . . 11 . . . . 2 . . . . . . . . . . . . . . . . . . . . . Naked Turns . | . . . . . . . . . . . . . . . . . . . . . . . . . . . . . . . . . . . . . Heaviest Build 178 | . . . . 1 . . 44 55 55 58 51 51 32 76 86 86 88 94 88 88 94 96 88 88 90 90 98 98 112 146 147 146 146 151 163 178 Greatest Support 232 | 20 3 3 3 3 3 3 80 69 69 66 60 60 30 104 104 96 90 90 90 90 90 113 113 105 120 120 150 150 150 150 150 150 150 180 232 232 Greatest Overweight (x) 1 | . . . . . . . . . 1 1 . 1 1 1 . 1 . 1 . . 1 1 . . . . . . . . . . . . 1 . Average Overweight (x) . | . . . . . . . . . . . . . 1 . . . . . . . . . . . . . . . . . . . . . . . Largest Inventory Capacity 25 | 5 5 5 5 5 5 5 15 15 15 15 15 15 15 15 15 15 15 15 15 15 15 15 15 15 15 15 15 15 20 25 25 25 25 25 25 25 Average Capacity 16 | 5 5 5 5 5 5 5 10 15 15 15 15 15 15 15 15 15 15 15 15 15 15 15 15 15 15 15 15 15 17 20 25 25 25 25 25 25 Most Carried 25 | 4 4 5 5 5 4 4 15 13 13 15 13 15 15 15 15 15 15 15 15 15 15 15 15 9 15 15 15 15 20 25 25 25 25 25 25 24 Average Carried 15 | 2 4 4 3 3 3 4 8 11 11 14 13 13 15 14 14 14 14 15 15 15 14 14 10 8 13 14 14 14 16 20 24 24 23 22 24 22 Final Capacity 25 | 5 5 5 5 5 5 5 15 15 15 15 15 15 15 15 15 15 15 15 15 15 15 15 15 15 15 15 15 15 20 25 25 25 25 25 25 25 Final Carried 25 | 4 4 4 2 4 4 4 13 13 9 13 13 15 15 15 15 15 15 15 15 15 15 15 10 8 15 15 15 15 20 25 25 25 21 25 25 21 Class Distribution -------------------- 53% | Gladiator 17% | Scavenger-Gladiator 15% | Commander-Gladiator 8% | Mutant 3% | Scavenger-Mutant Dominant Class ---------------- Mutant | -10/Materials Mutant | -10/Mines Mutant | -9/Materials Mutant | -9/Mines Mutant | -9/Exiles Mutant | -8/Mines Mutant | -8/Materials Scavenger-Mutant | -7/Factory Mutant | -7/Waste Scavenger-Gladiator | -7/Factory Gladiator | -7/Lower Caves Gladiator | -7/Lower Caves Gladiator | -7/Zion Gladiator | -6/Proximity Caves Scavenger-Gladiator | -6/Factory Gladiator | -6/Waste Gladiator | -6/Factory Gladiator | -6/Lower Caves Gladiator | -6/Lower Caves Gladiator | -6/Data Miner Gladiator | -5/Proximity Caves Gladiator | -5/Factory Gladiator | -5/Upper Caves Gladiator | -5/Upper Caves Commander-Gladiator | -5/Warlord Gladiator | -4/Proximity Caves Gladiator | -4/Factory Gladiator | -4/Waste Gladiator | -4/Factory Commander-Gladiator | -4/Extension Commander-Gladiator | -4/Cetus Commander-Gladiator | -4/Archives Gladiator | -4/Hub_04(d) Scavenger-Gladiator | -3/Research Scavenger-Gladiator | -2/Research Scavenger-Gladiator | -1/Access Resources | -11 -10 -10 -9 -9 -9 -8 -8 -7 -7 -7 -7 -7 -7 -6 -6 -6 -6 -6 -6 -6 -5 -5 -5 -5 -5 -4 -4 -4 -4 -4 -4 -4 -4 -3 -2 -1 ----------- Run | Yrd Mat Min Mat Min Exi Min Mat Fac Was Fac Low Low Zio Pro Fac Was Fac Low Low Dat Pro Fac Upp Upp War Pro Fac Was Fac Ext Cet Arc Hub Res Res Acc Matter Collected 3918 | 207 . 13 . 26 . 10 163 90 . 343 32 66 43 236 164 90 75 80 5 . 20 275 159 40 86 70 . . 276 189 181 122 75 302 450 30 Remotely . | . . . . . . . . . . . . . . . . . . . . . . . . . . . . . . . . . . . . . Salvage Created 11911 | . . . . . . . 953 127 . 621 . 377 . 237 430 114 494 471 87 . 211 1082 790 114 20 468 . . 862 710 146 313 1023 1273 807 181 Parts 432 | . . . . . . . 62 5 . 38 . 5 . 6 15 2 21 4 2 . 11 44 8 2 2 9 . . 52 18 4 27 34 40 12 9 Haulers Intercepted 17 | . . . . . . . 5 1 . 2 . . . . . . 1 . . . . . . . . . . . 1 . . . . 3 4 . Recyclers Shooed 4 | . . . . . . . . . . 1 . . . 1 1 . . . . . . . . . . . . . . 1 . . . . . . Parts Field Recycled . | . . . . . . . . . . . . . . . . . . . . . . . . . . . . . . . . . . . . . Retrieved Matter . | . . . . . . . . . . . . . . . . . . . . . . . . . . . . . . . . . . . . . Parts Self-Destructed 77 | . . . . . . . . . . . 3 4 . 42 . . . 10 2 . 8 . 6 . . 2 . . . . . . . . . . Prevented 23 | . . . . . . . . . . . . . . 1 . . . . . . 3 . 10 2 . 7 . . . . . . . . . . Parts Restored . | . . . . . . . . . . . . . . . . . . . . . . . . . . . . . . . . . . . . . Kills | -11 -10 -10 -9 -9 -9 -8 -8 -7 -7 -7 -7 -7 -7 -6 -6 -6 -6 -6 -6 -6 -5 -5 -5 -5 -5 -4 -4 -4 -4 -4 -4 -4 -4 -3 -2 -1 ------- Run | Yrd Mat Min Mat Min Exi Min Mat Fac Was Fac Low Low Zio Pro Fac Was Fac Low Low Dat Pro Fac Upp Upp War Pro Fac Was Fac Ext Cet Arc Hub Res Res Acc Combat Hostiles Destroyed 157 | . . . . . . . 11 3 . 8 . 3 . 4 5 . 9 3 4 . 9 21 14 2 1 7 . . 12 10 1 . 13 11 5 1 Melee 109 | . . . . . . . 11 3 . 8 . 3 . 1 4 . 7 2 4 . 7 17 7 2 1 3 . . 11 3 1 . 4 6 3 1 Classes Destroyed 21 | . . . . . . . 6 1 . 4 . . . 1 . 1 . 1 . . 1 1 1 . . . . . 1 . . . . 1 2 . Worker 6 | . . . . . . . . . . 3 . . . . . . . . . . . . . . . . . . . . . . . 2 1 . Builder 10 | . . . . . . . . . . 1 . . . . . . 1 . . . . . . . . . . . 5 1 . . 1 1 . . Tunneler 2 | . . . . . . . . . . . . . . . . . . . . . . 2 . . . . . . . . . . . . . . Hauler 17 | . . . . . . . 5 1 . 2 . . . . . . 1 . . . . . . . . . . . 1 . . . . 3 4 . Recycler 5 | . . . . . . . 1 . . . . . . . 1 . . . . . . . . . . . . . . . . . 1 2 . . Minesweeper 1 | . . . . . . . . . . . . . . . . . . . . . . . 1 . . . . . . . . . . . . . Mechanic 1 | . . . . . . . . . . . . . . . . . . . . . . . . . . . . . . . . . . . 1 . Operator 10 | . . . . . . . . . . . . . . . . . . . . . . . . . . . . . 1 . . 9 . . . . Drone 2 | . . . . . . . . . . . . . . . . . . . . . 2 . . . . . . . . . . . . . . . Watcher 11 | . . . . . . . 1 . . . . . . 1 . . 1 . . . . 2 . . . . . . . . . . 1 1 1 3 Swarmer 36 | . . . . . . . . 3 . . . 3 . . . . 4 . 4 . 6 5 1 . 1 1 . . 4 . . . . 4 . . Grunt 59 | . . . . . . . 6 . . 2 . . . 1 3 . 3 . . . . 8 9 . . 3 . . 4 7 . . 10 1 2 . Brawler 3 | . . . . . . . . . . . . . . . . . . 1 . . . . 2 . . . . . . . . . . . . . Duelist 4 | . . . . . . . . . . . . . . 1 . . 1 1 . . . . 1 . . . . . . . . . . . . . Sentry 17 | . . . . . . . 1 . . 1 . . . . 2 . . 1 . . 1 1 1 . . 1 . . 2 2 . . 1 3 . . Specialist 4 | . . . . . . . 4 . . . . . . . . . . . . . . . . . . . . . . . . . . . . . Hunter 13 | . . . . . . . . . . 1 . . . 2 . . . . . . . . . 2 . 2 . . . 1 . . 2 . 2 1 Programmer 16 | . . . . . . . . . . 4 . . . . . . 1 . . . . 7 . . . . . . 2 . . . . 2 . . Cetus Guard 1 | . . . . . . . . . . . . . . . . . . . . . . . . . . . . . . . 1 . . . . . Striker 1 | . . . . . . . . . . . . . . . . . . . . . . . . . . . . . . . . . . 1 . . Executioner 1 | . . . . . . . . . . . . . . . . . . . . . . . . . . . . . . . . . . . 1 . Decomposer 1 | . . . . . . . . . . . . 1 . . . . . . . . . . . . . . . . . . . . . . . . Martyr 2 | . . . . . . . . . . . . . . . . 2 . . . . . . . . . . . . . . . . . . . . Best Kill Streak 9 | . . . . . . . 3 3 . 2 . 3 . 2 1 . 3 3 4 . 6 5 6 2 1 3 . . 4 4 1 6 9 6 4 2 Combat Bots Only 9 | . . . . . . . 3 3 . 2 . 3 . 2 1 . 3 3 4 . 6 5 5 2 1 3 . . 4 4 1 . 9 3 2 1 Max Kills in Single Turn 2 | . . . . . . . 1 1 . 1 . 1 . 1 1 1 1 1 2 . 1 1 1 1 1 1 . . 1 1 1 1 1 1 1 1 Gunslinging . | . . . . . . . . . . . . . . . . . . . . . . . . . . . . . . . . . . . . . Exploded . | . . . . . . . . . . . . . . . . . . . . . . . . . . . . . . . . . . . . . Melee 2 | . . . . . . . 1 1 . 1 . 1 . 1 1 . 1 1 2 . 1 1 1 1 1 1 . . 1 1 1 . 1 1 1 1 Uniques/NPCs Destroyed 1 | . . . . . . . . . . . . . . . . . . . . . . . . . . . . . . . 1 . . . . . A7 (-4/Cetus) Combat | -11 -10 -10 -9 -9 -9 -8 -8 -7 -7 -7 -7 -7 -7 -6 -6 -6 -6 -6 -6 -6 -5 -5 -5 -5 -5 -4 -4 -4 -4 -4 -4 -4 -4 -3 -2 -1 -------- Run | Yrd Mat Min Mat Min Exi Min Mat Fac Was Fac Low Low Zio Pro Fac Was Fac Low Low Dat Pro Fac Upp Upp War Pro Fac Was Fac Ext Cet Arc Hub Res Res Acc Hostile Shots Fired 1475 | . 2 2 13 68 . . 66 10 4 174 12 15 . 73 100 . 29 72 29 . 81 202 88 39 41 40 . . 37 45 3 . 104 39 25 62 Missed 467 | . 2 1 5 26 . . 9 3 . 61 6 4 . 26 36 . 8 28 14 . 25 51 28 10 15 18 . . 12 12 2 . 33 16 4 12 Hits 1008 | . . 1 8 42 . . 57 7 4 113 6 11 . 47 64 . 21 44 15 . 56 151 60 29 26 22 . . 25 33 1 . 71 23 21 50 Melee 12 | . . . . 2 . . . . 4 1 . . . . . . . 1 . . . . 3 . . . . . . . . . . 1 . . Projectile 996 | . . 1 8 40 . . 57 7 . 112 6 11 . 47 64 . 21 43 15 . 56 151 57 29 26 22 . . 25 33 1 . 71 22 21 50 AOE 5 | . . . . . . . . . . . . . . . . . . . . . . 1 . . 1 . . . . . . . . 3 . . Critical Strikes 41 | . . . . . . . 4 . 4 6 . . . 1 . . . 1 1 . 1 6 2 3 . . . . 1 3 . . 5 2 1 . Part Disruptions 1 | . . . . . . . . . . 1 . . . . . . . . . . . . . . . . . . . . . . . . . . Damage Taken 15578 | . . 21 74 453 . . 1040 108 189 983 34 330 . 737 566 . 344 164 127 . 555 2662 1049 489 468 380 . 338 702 632 38 . 1087 751 438 819 Core 1721 | . . 4 24 124 . . 117 18 21 82 5 68 . 103 16 . 17 4 . . 131 211 83 51 93 61 . 129 48 31 . . 130 48 58 44 Absorbed by Shields 1615 | . . . . . . . . . . . . . . . . . . 190 . . 217 269 . . 140 11 . . . 155 39 . 334 . . 260 Redirected to Shielding 33 | . . . . . . . . . . . . . . 33 . . . . . . . . . . . . . . . . . . . . . . Regen/Repaired (Parts) 5020 | . . . . . . . . . . . . . . . . 2406 1211 . . . . 389 . . 479 . . . 191 . . . . . 344 . Core Remaining (%) 80 | 100 . 98 . . . 63 78 . . . . . . 57 . . . . . . 80 . . . . 50 . . . . . . 70 96 96 97 Volleys Fired . | . . . . . . . . . . . . . . . . . . . . . . . . . . . . . . . . . . . . . Largest . | . . . . . . . . . . . . . . . . . . . . . . . . . . . . . . . . . . . . . Hottest . | . . . . . . . . . . . . . . . . . . . . . . . . . . . . . . . . . . . . . Shots Fired . | . . . . . . . . . . . . . . . . . . . . . . . . . . . . . . . . . . . . . Gun . | . . . . . . . . . . . . . . . . . . . . . . . . . . . . . . . . . . . . . Cannon . | . . . . . . . . . . . . . . . . . . . . . . . . . . . . . . . . . . . . . Launcher . | . . . . . . . . . . . . . . . . . . . . . . . . . . . . . . . . . . . . . Special . | . . . . . . . . . . . . . . . . . . . . . . . . . . . . . . . . . . . . . Kinetic . | . . . . . . . . . . . . . . . . . . . . . . . . . . . . . . . . . . . . . Thermal . | . . . . . . . . . . . . . . . . . . . . . . . . . . . . . . . . . . . . . Explosive . | . . . . . . . . . . . . . . . . . . . . . . . . . . . . . . . . . . . . . Electromagnetic . | . . . . . . . . . . . . . . . . . . . . . . . . . . . . . . . . . . . . . Robot Hit Streak . | . . . . . . . . . . . . . . . . . . . . . . . . . . . . . . . . . . . . . Robot Miss Streak . | . . . . . . . . . . . . . . . . . . . . . . . . . . . . . . . . . . . . . Penetration Max . | . . . . . . . . . . . . . . . . . . . . . . . . . . . . . . . . . . . . . Secondary Targets . | . . . . . . . . . . . . . . . . . . . . . . . . . . . . . . . . . . . . . Shots Hit Robots 555 | . . . . . . . 47 5 . 40 . 11 . 13 24 7 18 10 4 . 12 80 43 6 2 16 . . 29 39 15 12 35 53 25 9 Core Hits 179 | . . . . 4 . . 19 4 . 14 . 6 . 2 7 3 7 2 1 . 5 25 7 1 1 4 . . 17 7 3 7 8 14 6 5 Critical Kills 9 | . . . . . . . . . . . . . . . . . . . . . 1 . 1 . . 1 . . 1 1 . . 2 2 . . Critical Parts Destroyed 73 | . . . . . . . . . . . . . . 1 2 . . 4 2 . 2 10 13 2 . 5 . . 1 8 . . 9 7 7 . Critical Strikes 126 | . . . . . . . 3 . . 5 . . . 3 5 . 3 4 2 . 5 17 18 2 . 7 . . 4 14 . . 12 12 8 2 Smash 83 | . . . . . . . . . . . . . . 1 2 . . 4 2 . 3 10 14 2 . 6 . . 2 9 . . 11 10 7 . Sever 39 | . . . . . . . 3 . . 5 . . . 2 3 . 1 . . . 1 6 4 . . 1 . . 2 5 . . 1 2 1 2 Impale 4 | . . . . . . . . . . . . . . . . . 2 . . . 1 1 . . . . . . . . . . . . . . Melee Attacks 1064 | . . . . . . . 72 7 . 75 . 22 2 27 67 8 61 18 12 . 24 141 88 13 8 30 6 11 85 50 15 15 52 91 43 21 Impact 422 | . . . . . . . . . . . . . 1 18 22 6 27 12 7 . 16 68 55 11 5 17 2 2 33 29 2 3 33 35 18 . Slashing 587 | . . . . . . . 72 7 . 75 . 22 1 9 45 2 8 1 3 . 5 58 33 2 3 13 4 9 52 21 13 12 19 56 22 20 Piercing 55 | . . . . . . . . . . . . . . . . . 26 5 2 . 3 15 . . . . . . . . . . . . 3 1 Sneak Attacks 90 | . . . . . . . 8 1 . 9 . 1 . 1 1 7 2 . . . . 3 2 . . . . . 11 3 13 10 2 9 7 . Combat Hostiles 5 | . . . . . . . . . . . . . . . . . . . . . . 1 1 . . . . . 3 . . . . . . . Follow-up Attacks 129 | . . . . . . . 3 . . 7 . 3 . 2 8 1 9 . 1 . 6 25 11 2 1 5 . . 2 11 1 1 7 15 6 2 Damage Inflicted 31573 | . . 9 . 37 . . 1970 217 . 1838 . 643 . 603 1006 463 1010 780 203 . 573 3818 2097 307 100 811 . . 2127 2224 1059 1389 2128 3679 1835 647 Guns . | . . . . . . . . . . . . . . . . . . . . . . . . . . . . . . . . . . . . . Cannons . | . . . . . . . . . . . . . . . . . . . . . . . . . . . . . . . . . . . . . Explosions . | . . . . . . . . . . . . . . . . . . . . . . . . . . . . . . . . . . . . . Melee 31501 | . . . . . . . 1961 217 . 1829 . 643 . 603 1006 463 1010 780 203 . 573 3810 2097 307 100 811 . . 2127 2224 1059 1389 2128 3679 1835 647 Ramming 72 | . . 9 . 37 . . 9 . . 9 . . . . . . . . . . . 8 . . . . . . . . . . . . . . Kinetic . | . . . . . . . . . . . . . . . . . . . . . . . . . . . . . . . . . . . . . Thermal . | . . . . . . . . . . . . . . . . . . . . . . . . . . . . . . . . . . . . . Explosive . | . . . . . . . . . . . . . . . . . . . . . . . . . . . . . . . . . . . . . Electromagnetic . | . . . . . . . . . . . . . . . . . . . . . . . . . . . . . . . . . . . . . Impact 14404 | . . . . . . . . . . . . . . 413 319 391 504 740 174 . 393 2077 1499 267 61 577 . . 694 1506 137 . 1633 1972 1047 . Slashing 16035 | . . . . . . . 1961 217 . 1829 . 643 . 190 687 72 117 . . . 80 1381 598 40 39 234 . . 1433 718 922 1389 495 1707 636 647 Piercing 1062 | . . . . . . . . . . . . . . . . . 389 40 29 . 100 352 . . . . . . . . . . . . 152 . Highest Corruption 27 | . . . . . . . . . 18 24 24 27 27 . . . 1 1 1 1 1 8 8 8 8 3 . 9 10 13 13 13 . 2 1 . Average Corruption 8 | . . . . . . . . . 12 19 24 24 27 . . . 1 1 1 1 1 3 8 8 8 3 . 7 9 10 13 6 . 1 1 . Corruption Purged 21 | . . . . . . . . . . . . . . . . . . . . . . . . . . . . . . . . 21 . . . . Corruption Blocked . | . . . . . . . . . . . . . . . . . . . . . . . . . . . . . . . . . . . . . Effects 334 | . . . . . . . . . 6 54 15 34 3 . . . 6 5 8 1 2 18 49 13 2 . . 4 37 42 11 9 . 15 . . Message Errors 95 | . . . . . . . . . 1 14 8 9 1 . . . 3 3 2 . . 6 13 4 . . . 3 12 10 2 1 . 3 . . Matter Fused 66 | . . . . . . . . . 2 8 3 5 . . . . . . 1 . . 4 12 5 . . . 1 4 8 4 4 . 5 . . Heat Flow Errors 43 | . . . . . . . . . . 5 . 8 . . . . . . 1 . 1 2 6 . . . . . 9 7 2 . . 2 . . Energy Discharges 48 | . . . . . . . . . 1 16 1 3 2 . . . 1 2 1 . . 2 7 . 1 . . . 4 4 1 2 . . . . Parts Rejected 4 | . . . . . . . . . . 1 . . . . . . . . . . 1 1 1 . . . . . . . . . . . . . Parts Fused 5 | . . . . . . . . . . . . . . . . . . . 1 . . . 1 . 1 . . . . 2 . . . . . . Data Loss (minor) 39 | . . . . . . . . . 1 5 1 6 . . . . . . 2 1 . 1 4 3 . . . . 3 7 1 2 . 2 . . Data Loss (major) 20 | . . . . . . . . . . 2 2 2 . . . . . . . . . 2 2 1 . . . . 4 3 . . . 2 . . Alerts 10 | . . . . . . . . . . 1 . 1 . . . . 2 . . . . . 3 . . . . . 1 . 1 . . 1 . . Misdirections 4 | . . . . . . . . . 1 2 . . . . . . . . . . . . . . . . . . . 1 . . . . . . Overload Shots . | . . . . . . . . . . . . . . . . . . . . . . . . . . . . . . . . . . . . . Overflow Damage 7773 | . . . . . . . 80 . . 177 . 228 . 99 140 62 317 548 149 . 185 720 768 140 . 346 . . 454 610 92 327 575 1024 707 25 Projectiles . | . . . . . . . . . . . . . . . . . . . . . . . . . . . . . . . . . . . . . Explosions . | . . . . . . . . . . . . . . . . . . . . . . . . . . . . . . . . . . . . . Melee 7773 | . . . . . . . 80 . . 177 . 228 . 99 140 62 317 548 149 . 185 720 768 140 . 346 . . 454 610 92 327 575 1024 707 25 Knockbacks 60 | . . . . . . . . . . . . . . 3 2 3 1 3 . . 1 14 5 1 1 1 . . . 7 1 . 7 7 3 . Impact 54 | . . . . . . . . . . . . . . 3 1 3 1 3 . . 1 11 5 1 1 1 . . . 7 . . 6 7 3 . Kinetic . | . . . . . . . . . . . . . . . . . . . . . . . . . . . . . . . . . . . . . Secondary 6 | . . . . . . . . . . . . . . . 1 . . . . . . 3 . . . . . . . . 1 . 1 . . . Self-Inflicted Damage 23 | . . 4 . 15 . . 4 . . . . . . . . . . . . . . . . . . . . . . . . . . . . . Shots . | . . . . . . . . . . . . . . . . . . . . . . . . . . . . . . . . . . . . . Rammed 19 | . . 1 . 17 . . 1 . . . . . . . . . . . . . . . . . . . . . . . . . . . . . Targets Rammed 21 | . . 1 . 17 . . 1 . . 1 . . . . . . . . . . . 1 . . . . . . . . . . . . . . Kicked 2 | . . . . . . . . . . 1 . . . . . . . . . . . 1 . . . . . . . . . . . . . . Crushed . | . . . . . . . . . . . . . . . . . . . . . . . . . . . . . . . . . . . . . Highest Temperature 463 | . . . . . . . 12 . . 270 . 238 . 21 463 . 6 . 231 . 116 266 272 . 20 13 1 1 259 290 183 . 239 258 25 . Average Temperature 99 | . . . . . . . 4 . . 89 . 89 . 9 151 . 3 . 175 . 56 96 92 . 10 2 1 1 105 114 87 . 105 125 19 . Received Heat Transfer 2572 | . . 9 . 6 . . 504 . . 234 . . . 150 186 . 45 36 . . 21 390 387 . 21 22 . . 18 180 . . 282 36 45 . Effects 6 | . . . . . . . . . . . . . . . 2 . . . . . . 1 . . . . . . 1 2 . . . . . . Shutdowns 1 | . . . . . . . . . . . . . . . 1 . . . . . . . . . . . . . . . . . . . . . Energy Bleed 1 | . . . . . . . . . . . . . . . . . . . . . . . . . . . . . 1 . . . . . . . Interference 3 | . . . . . . . . . . . . . . . . . . . . . . 1 . . . . . . . 2 . . . . . . Damage (minor) 1 | . . . . . . . . . . . . . . . 1 . . . . . . . . . . . . . . . . . . . . . Siege Activations . | . . . . . . . . . . . . . . . . . . . . . . . . . . . . . . . . . . . . . Martial Activations . | . . . . . . . . . . . . . . . . . . . . . . . . . . . . . . . . . . . . . Shielding Activations . | . . . . . . . . . . . . . . . . . . . . . . . . . . . . . . . . . . . . . Robots Disrupted 1 | . . . . . . . . . . . . . . . . . . . . . . . . . . 1 . . . . . . . . . . Combat Hostiles 1 | . . . . . . . . . . . . . . . . . . . . . . . . . . 1 . . . . . . . . . . Robots Corrupted 56 | . . . . . . . . . . . . . . 3 1 1 2 3 . . 2 4 7 . . 4 . . 2 8 . . 9 6 4 . Combat Hostiles 50 | . . . . . . . . . . . . . . 3 1 . 2 3 . . 2 4 7 . . 4 . . 1 7 . . 9 5 2 . Parts Fried 90 | . . . . . . . . . . . . . . 5 2 4 5 5 3 . 3 11 5 . . 4 . . 3 13 . . 10 6 11 . Impact Corruptions 156 | . . . . . . . . . . . . . . 5 4 3 8 15 5 . 3 25 17 3 . 7 . . 4 16 . . 12 15 14 . Robots Melted . | . . . . . . . . . . . . . . . . . . . . . . . . . . . . . . . . . . . . . Combat Hostiles . | . . . . . . . . . . . . . . . . . . . . . . . . . . . . . . . . . . . . . Parts Melted 1 | . . . . . . . . . . . . . . . . . . . . . . 1 . . . . . . . . . . . . . . Heat Transferred . | . . . . . . . . . . . . . . . . . . . . . . . . . . . . . . . . . . . . . Parts Sabotaged . | . . . . . . . . . . . . . . . . . . . . . . . . . . . . . . . . . . . . . Parts Stolen . | . . . . . . . . . . . . . . . . . . . . . . . . . . . . . . . . . . . . . Parts Stripped . | . . . . . . . . . . . . . . . . . . . . . . . . . . . . . . . . . . . . . Power Chain Reactions . | . . . . . . . . . . . . . . . . . . . . . . . . . . . . . . . . . . . . . Alert | -11 -10 -10 -9 -9 -9 -8 -8 -7 -7 -7 -7 -7 -7 -6 -6 -6 -6 -6 -6 -6 -5 -5 -5 -5 -5 -4 -4 -4 -4 -4 -4 -4 -4 -3 -2 -1 ------- Run | Yrd Mat Min Mat Min Exi Min Mat Fac Was Fac Low Low Zio Pro Fac Was Fac Low Low Dat Pro Fac Upp Upp War Pro Fac Was Fac Ext Cet Arc Hub Res Res Acc Maximum Alert Level 3 | . . . . . . . . . . . . . . . . . 2 . . . . 2 . . . . . . 1 2 2 1 3 2 . . Low Security (%) 63 | 100 100 100 100 100 . 100 100 100 100 100 . . . . 100 100 40 . . . . . . . . . 100 100 82 23 . 82 21 . 100 100 Level 1 14 | . . . . . . . . . . . . . . . . . 1 . . . . 54 . . . . . . 17 4 92 17 19 36 . . Level 2 21 | . . . . . . . . . . . . . . . . . 58 . . . . 45 . . . . . . . 71 7 . 29 63 . . Level 3 . | . . . . . . . . . . . . . . . . . . . . . . . . . . . . . . . . . 28 . . . Level 4 . | . . . . . . . . . . . . . . . . . . . . . . . . . . . . . . . . . . . . . Level 5 . | . . . . . . . . . . . . . . . . . . . . . . . . . . . . . . . . . . . . . High Security . | . . . . . . . . . . . . . . . . . . . . . . . . . . . . . . . . . . . . . Max Security . | . . . . . . . . . . . . . . . . . . . . . . . . . . . . . . . . . . . . . Peak Influence 747 | . 15 30 35 98 . . 107 106 11 58 . . . . 156 13 679 . . . . 495 . . . . 36 2 263 633 408 319 747 513 198 38 Initial 495 | . . 5 . 13 . . . 41 11 . . . . . 156 10 . . . . . 495 . . . . 32 . . 119 316 143 . 363 191 5 Average 185 | . . 5 6 30 . . 29 64 1 11 . . . . 46 . 393 . . . . 393 . . . . 10 . 87 406 342 72 458 430 66 10 Influence Increases 10729 | . 15 30 45 253 . . 468 102 . 302 . 85 . 658 303 13 1402 90 105 . 190 1296 420 65 230 246 10 4 586 1160 352 286 1079 534 244 156 Destroy 0b10 Robot/C 4860 | . . . . 80 . . 220 60 . 160 . 60 . 420 120 . 640 60 80 . 140 420 280 40 160 140 . . 240 540 160 80 420 220 100 20 Destroy 0b10 Robot/NC 445 | . . . . . . . 35 5 . 30 . 15 . 25 5 . 25 15 . . 10 20 5 . . . . . 35 35 10 45 35 45 35 15 Destroy Leader 804 | . . . . 20 . . 62 12 . 64 . 10 . 40 30 . 114 . 10 . 10 94 30 10 . 20 . . 52 46 . . 66 58 40 16 Allied During Kill 1783 | . . . . 3 . . . . . . . . . 158 2 . 516 . . . . . . . 40 11 . . . 478 170 125 280 . . . Successful Hack 541 | . . . . . . . 32 25 . 14 . . . . 75 . 54 . . . . 24 . . . . . . 70 21 . . 10 132 . 84 Select Force Hacks 150 | . . . . . . . . . . . . . . . . . . . . . . . . . . . . . . . . . 150 . . . Disable Machine 165 | . . . . . . . 15 . . . . . . . 15 . 15 . . . . 30 . . . . . . 30 15 . 30 15 . . . Destroy Structure 406 | . . . . . . . 14 . . 19 . . . . 26 13 23 . . . . 48 . . . . 10 4 54 10 12 6 88 34 24 21 Advance Influence 450 | . . . . . . . . . . . . . . . . . . . . . . 450 . . . . . . . . . . . . . . Partial Spotted 45 | . . . 15 15 . . . . . . . . . . . . . . . . . 15 . . . . . . . . . . . . . . Lose Combat Pursuer 1080 | . 15 30 30 135 . . 90 . . 15 . . . 15 30 . 15 15 15 . 30 195 105 15 30 75 . . 105 15 . . 15 45 45 . Influence Decreases 10703 | . . 45 10 259 29 . 376 161 33 244 58 85 . 410 520 44 845 533 187 32 117 894 727 233 98 326 62 4 341 838 561 644 386 886 575 140 Entered New Map 1998 | . . 10 . 22 29 . . 51 22 . 22 . . . 92 21 . 207 23 32 . 28 177 33 . 132 20 . . 126 251 215 . 330 150 5 Time Decay 7059 | . . 35 10 177 . . 346 110 11 224 36 65 . 210 400 23 595 326 164 . 117 616 510 200 88 179 42 4 331 452 140 389 196 546 392 125 Search Patrol Dispatched 200 | . . . . . . . . . . . . . . . . . . . . . . 200 . . . . . . . . . . . . . . Lost Part 320 | . . . . . . . 30 . . 20 . 20 . 40 . . 10 . . . . 50 40 . 10 . . . 10 30 10 . 10 10 20 10 Lost Ally 976 | . . . . 60 . . . . . . . . . 160 28 . 240 . . . . . . . . 15 . . . 80 160 40 180 . 13 . Purge Threat 150 | . . . . . . . . . . . . . . . . . . . . . . . . . . . . . . 150 . . . . . . Squads Dispatched 67 | . . . . . . . 2 . . 4 . . . 3 4 . 12 . . . . 10 . . . . 1 . 4 3 . . 8 8 5 3 Investigation 24 | . . . . . . . . . . . . . . 2 2 . 3 . . . . 5 . . . . 1 . . 1 . . 3 4 3 . Extermination 15 | . . . . . . . . . . 2 . . . . 2 . 4 . . . . 4 . . . . . . 1 . . . . 1 . 1 Reinforcement 23 | . . . . . . . 2 . . 1 . . . 1 . . 3 . . . . 1 . . . . . . 1 2 . . 5 3 2 2 Assault 3 | . . . . . . . . . . . . . . . . . 1 . . . . . . . . . . . 2 . . . . . . . Garrison 2 | . . . . . . . . . . 1 . . . . . . 1 . . . . . . . . . . . . . . . . . . . Intercept . | . . . . . . . . . . . . . . . . . . . . . . . . . . . . . . . . . . . . . Searches Triggered 2 | . . . . . . . . . . . . . . . . . . . . . . 2 . . . . . . . . . . . . . . Data Miner Redirects 4 | . . . . . . . . . . . . . . . . . . . . . . 1 . . . . 1 . . 1 . . 1 . . . Construction Impeded 4 | . . . . . . . . . . . . . . 1 . . 1 . . . . 1 . . . . . . . 1 . . . . . . Haulers Reinforced 5 | . . . . . . . . . . 1 . . . . . . . . . . . . . . . . . . . . . . 1 1 1 1 Active Scanning Responses . | . . . . . . . . . . . . . . . . . . . . . . . . . . . . . . . . . . . . . Cargo Convoy Interrupts . | . . . . . . . . . . . . . . . . . . . . . . . . . . . . . . . . . . . . . Stealth | -11 -10 -10 -9 -9 -9 -8 -8 -7 -7 -7 -7 -7 -7 -6 -6 -6 -6 -6 -6 -6 -5 -5 -5 -5 -5 -4 -4 -4 -4 -4 -4 -4 -4 -3 -2 -1 --------- Run | Yrd Mat Min Mat Min Exi Min Mat Fac Was Fac Low Low Zio Pro Fac Was Fac Low Low Dat Pro Fac Upp Upp War Pro Fac Was Fac Ext Cet Arc Hub Res Res Acc Distress Signals 37 | . . . . 1 . . 5 . . 2 . . . 2 . . . . . . 1 2 . . . . . . 2 2 2 . . 8 8 2 Communications Jammed 10 | . . . . . . . . . . . . . . 6 4 . . . . . . . . . . . . . . . . . . . . . Distress Signals 10 | . . . . . . . . . . . . . . 6 4 . . . . . . . . . . . . . . . . . . . . . Times Spotted 496 | . 4 2 9 44 . . 26 3 6 14 1 3 . 21 9 . 35 4 5 . 11 39 22 3 73 11 . 4 12 28 10 6 30 38 15 8 Peak Tracking Total 20 | . 4 2 8 20 . . 8 3 6 5 1 3 . 5 3 . 6 3 3 . 6 7 5 2 12 5 . 2 5 6 5 1 6 5 4 5 Tactical Retreats 56 | . 1 1 1 11 . . 5 . . 1 . . . 1 2 . 1 1 1 . 2 6 5 1 2 2 . 1 4 1 . . 1 3 2 . Traps | -11 -10 -10 -9 -9 -9 -8 -8 -7 -7 -7 -7 -7 -7 -6 -6 -6 -6 -6 -6 -6 -5 -5 -5 -5 -5 -4 -4 -4 -4 -4 -4 -4 -4 -3 -2 -1 ------- Run | Yrd Mat Min Mat Min Exi Min Mat Fac Was Fac Low Low Zio Pro Fac Was Fac Low Low Dat Pro Fac Upp Upp War Pro Fac Was Fac Ext Cet Arc Hub Res Res Acc Traps Triggered 11 | . . . . . . . . 1 . 1 . . . . 1 . 2 . . . . . . . . . 1 . 2 2 . . . 1 . . Indirectly . | . . . . . . . . . . . . . . . . . . . . . . . . . . . . . . . . . . . . . Trap Hack Attempts . | . . . . . . . . . . . . . . . . . . . . . . . . . . . . . . . . . . . . . Triggered . | . . . . . . . . . . . . . . . . . . . . . . . . . . . . . . . . . . . . . Disarmed . | . . . . . . . . . . . . . . . . . . . . . . . . . . . . . . . . . . . . . Reprogrammed . | . . . . . . . . . . . . . . . . . . . . . . . . . . . . . . . . . . . . . Reused . | . . . . . . . . . . . . . . . . . . . . . . . . . . . . . . . . . . . . . Traps Extracted . | . . . . . . . . . . . . . . . . . . . . . . . . . . . . . . . . . . . . . Installed . | . . . . . . . . . . . . . . . . . . . . . . . . . . . . . . . . . . . . . Triggered . | . . . . . . . . . . . . . . . . . . . . . . . . . . . . . . . . . . . . . Machines | -11 -10 -10 -9 -9 -9 -8 -8 -7 -7 -7 -7 -7 -7 -6 -6 -6 -6 -6 -6 -6 -5 -5 -5 -5 -5 -4 -4 -4 -4 -4 -4 -4 -4 -3 -2 -1 ---------- Run | Yrd Mat Min Mat Min Exi Min Mat Fac Was Fac Low Low Zio Pro Fac Was Fac Low Low Dat Pro Fac Upp Upp War Pro Fac Was Fac Ext Cet Arc Hub Res Res Acc Machines Disabled 11 | . . . . . . . 1 . . . . . . . 1 . 1 . . . . 2 . . . . . . 2 1 . 2 1 . . . Max in Single Turn 1 | . . . . . . . 1 . . . . . . . 1 . 1 . . . . 1 . . . . . . 1 . . . . . . . Garrison Access 6 | . . . . . . . . . . . . . . . 1 . 1 . . . . 1 . . . . . . 1 . . . . . 2 . Network Hub 3 | . . . . . . . . . . . . . . . . . . . . . . . . . . . . . . . . . 3 . . . Machines Repaired . | . . . . . . . . . . . . . . . . . . . . . . . . . . . . . . . . . . . . . Machines Dismantled . | . . . . . . . . . . . . . . . . . . . . . . . . . . . . . . . . . . . . . Machines Sabotaged 3 | . . . . . . . . . . . . . . . . . . . . . . . . . . . . . . . . . 3 . . . Overloaded Fab Kills . | . . . . . . . . . . . . . . . . . . . . . . . . . . . . . . . . . . . . . Hacking | -11 -10 -10 -9 -9 -9 -8 -8 -7 -7 -7 -7 -7 -7 -6 -6 -6 -6 -6 -6 -6 -5 -5 -5 -5 -5 -4 -4 -4 -4 -4 -4 -4 -4 -3 -2 -1 --------- Run | Yrd Mat Min Mat Min Exi Min Mat Fac Was Fac Low Low Zio Pro Fac Was Fac Low Low Dat Pro Fac Upp Upp War Pro Fac Was Fac Ext Cet Arc Hub Res Res Acc Machines Accessed 99 | . 1 . 1 . 2 . 7 2 . 5 . 1 . 2 11 . 12 . . 3 . 14 . . 1 . 3 . 7 6 1 . 5 8 3 4 Terminals 53 | . . . 1 . . . 6 1 . 2 . . . 1 5 . 6 . . . . 5 . . . . 1 . 4 6 1 . 5 4 1 4 Fabricators 11 | . . . . . . . . . . 1 . . . 1 3 . 2 . . . . 3 . . . . 1 . . . . . . . . . Repair Stations 10 | . . . . . . . . . . . . . . . 1 . 2 . . . . 3 . . . . . . 2 . . . . 1 1 . Recycling Units 3 | . 1 . . . . . . . . 1 . . . . . . 1 . . . . . . . . . . . . . . . . . . . Scanalyzers 11 | . . . . . . . 1 1 . 1 . . . . 1 . . . . . . 2 . . . . 1 . 1 . . . . 3 . . Garrison Access 4 | . . . . . . . . . . . . . . . 1 . 1 . . . . 1 . . . . . . . . . . . . 1 . Total Hacks 287 | . 2 . 2 . 2 . 17 8 . 11 . 1 . 4 36 . 26 . . 24 . 38 . . 1 . 7 . 21 16 3 . 13 33 7 15 Successful 146 | . 1 . . . 2 . 11 5 . 8 . 1 . 2 18 . 12 . . 24 . 17 . . 1 . 5 . 10 6 . . 5 11 1 6 Failed 140 | . 1 . 2 . . . 6 3 . 3 . . . 2 17 . 14 . . . . 21 . . . . 2 . 11 10 3 . 8 22 6 9 Catastrophic 33 | . . . . . . . 1 . . 1 . . . 1 6 . 1 . . . . 5 . . . . 1 . 2 3 . . 3 5 3 1 Database Lockouts 1 | . . . . . . . . . . . . . . . 1 . . . . . . . . . . . . . . . . . . . . . Manual 99 | . . . 2 . 1 . 12 5 . 1 . . 1 1 12 . 8 . . . . 12 . . 1 . 1 . 6 4 1 . 10 15 4 2 Terminals 152 | . . . 2 . . . 15 5 . 4 . . . 1 19 . 10 . . . . 13 . . . . 1 . 12 16 3 . 13 20 3 15 Fabricators 32 | . . . . . . . . . . 1 . . . 3 7 . 7 . . . . 11 . . . . 3 . . . . . . . . . Repair Stations 30 | . . . . . . . . . . . . . . . 4 . 5 . . . . 7 . . . . . . 8 . . . . 5 1 . Recycling Units 7 | . 2 . . . . . . . . 2 . . . . . . 3 . . . . . . . . . . . . . . . . . . . Scanalyzers 29 | . . . . . . . 2 3 . 4 . . . . 2 . . . . . . 6 . . . . 3 . 1 . . . . 8 . . Garrison Access 9 | . . . . . . . . . . . . . . . 4 . 1 . . . . 1 . . . . . . . . . . . . 3 . Terminal Hacks 70 | . . . . . 2 . 6 1 . 1 . 1 . 1 9 . 3 . . 24 . 1 . . 1 . . . 3 6 . . 2 3 . 6 Record 10 | . . . . . 1 . . . . . . . . . 1 . . . . 6 . . . . . . . . . 1 . . . . . 1 Part Schematic 11 | . . . . . . . . . . . . . . . 3 . . . . 8 . . . . . . . . . . . . . . . . Robot Schematic 7 | . . . . . . . . . . . . . . . . . . . . 7 . . . . . . . . . . . . . . . . Robot Analysis 2 | . . . . . . . 1 . . . . . . . . . . . . . . . . . . . . . . 1 . . . . . . Prototype ID Bank 4 | . . . . . . . . . . . . . . . 1 . . . . 3 . . . . . . . . . . . . . . . . Open Door 4 | . . . . . . . . . . . . 1 . 1 . . . . . . . . . . 1 . . . . . . . . . . 1 Level Access Points 4 | . . . . . . . . . . . . . . . . . . . . . . . . . . . . . 1 . . . 1 1 . 1 Branch Access Points 5 | . . . . . . . 1 . . 1 . . . . 1 . 1 . . . . . . . . . . . 1 . . . . . . . Terminal Index 8 | . . . . . . . . 1 . . . . . . 1 . . . . . . 1 . . . . . . 1 1 . . 1 1 . 1 Alert Level 3 | . . . . . . . . . . . . . . . 1 . . . . . . . . . . . . . . 1 . . . . . 1 Unreport Threat 1 | . . . . . . . . . . . . . . . . . . . . . . . . . . . . . . 1 . . . . . . Locate Traps 4 | . . . . . . . 1 . . . . . . . . . 1 . . . . . . . . . . . . 1 . . . . . 1 Registered Components 3 | . . . . . . . 1 . . . . . . . 1 . . . . . . . . . . . . . . . . . . 1 . . Zone Layout 3 | . . . . . . . 2 . . . . . . . . . 1 . . . . . . . . . . . . . . . . . . . Proto ID Catalog 1 | . . . . . 1 . . . . . . . . . . . . . . . . . . . . . . . . . . . . . . . Fabricator Hacks 14 | . . . . . . . . . . 1 . . . 1 3 . 2 . . . . 5 . . . . 2 . . . . . . . . . Network Status 2 | . . . . . . . . . . . . . . . . . 1 . . . . . . . . . 1 . . . . . . . . . Load Schematic 9 | . . . . . . . . . . . . . . 1 2 . 1 . . . . 4 . . . . 1 . . . . . . . . . Build 3 | . . . . . . . . . . 1 . . . . 1 . . . . . . 1 . . . . . . . . . . . . . . Repair Station Hacks 13 | . . . . . . . . . . . . . . . 2 . 3 . . . . 3 . . . . . . 5 . . . . . . . Scan Component 9 | . . . . . . . . . . . . . . . 2 . 2 . . . . 2 . . . . . . 3 . . . . . . . Repair 4 | . . . . . . . . . . . . . . . . . 1 . . . . 1 . . . . . . 2 . . . . . . . Recycling Unit Hacks 5 | . 1 . . . . . . . . 2 . . . . . . 2 . . . . . . . . . . . . . . . . . . . Process 1 | . . . . . . . . . . . . . . . . . 1 . . . . . . . . . . . . . . . . . . . Retrieve Components 4 | . 1 . . . . . . . . 2 . . . . . . 1 . . . . . . . . . . . . . . . . . . . Scanalyzer 19 | . . . . . . . 2 2 . 3 . . . . . . . . . . . 4 . . . . 2 . 1 . . . . 5 . . Insert Component 5 | . . . . . . . 1 . . 2 . . . . . . . . . . . 1 . . . . 1 . . . . . . . . . Analyze 3 | . . . . . . . 1 . . 1 . . . . . . . . . . . 1 . . . . . . . . . . . . . . Retrieve Study 11 | . . . . . . . . 2 . . . . . . . . . . . . . 2 . . . . 1 . 1 . . . . 5 . . Garrison Access Hacks 3 | . . . . . . . . . . . . . . . 1 . 1 . . . . 1 . . . . . . . . . . . . . . Seal Access 3 | . . . . . . . . . . . . . . . 1 . 1 . . . . 1 . . . . . . . . . . . . . . Unauthorized Hacks 22 | . . . . . . . 3 2 . 1 . . . . 3 . 1 . . . . 3 . . . . 1 . 1 . . . 3 3 1 . Terminals 19 | . . . . . . . 3 2 . 1 . . . . 3 . 1 . . . . 2 . . . . . . 1 . . . 3 3 . . Assimilate 1 | . . . . . . . 1 . . . . . . . . . . . . . . . . . . . . . . . . . . . . . Botnet 12 | . . . . . . . 2 1 . 1 . . . . 2 . 1 . . . . 2 . . . . . . 1 . . . . 2 . . Operators 3 | . . . . . . . . 1 . . . . . . 1 . . . . . . . . . . . . . . . . . . 1 . . Sabotage 3 | . . . . . . . . . . . . . . . . . . . . . . . . . . . . . . . . . 3 . . . Fabricators 2 | . . . . . . . . . . . . . . . . . . . . . . 1 . . . . 1 . . . . . . . . . Recompile 2 | . . . . . . . . . . . . . . . . . . . . . . 1 . . . . 1 . . . . . . . . . Repair Stations 1 | . . . . . . . . . . . . . . . . . . . . . . . . . . . . . . . . . . . 1 . Patch 1 | . . . . . . . . . . . . . . . . . . . . . . . . . . . . . . . . . . . 1 . Recycling Units . | . . . . . . . . . . . . . . . . . . . . . . . . . . . . . . . . . . . . . Scanalyzers . | . . . . . . . . . . . . . . . . . . . . . . . . . . . . . . . . . . . . . Garrison Access . | . . . . . . . . . . . . . . . . . . . . . . . . . . . . . . . . . . . . . Data Cores Recovered 1 | . . . . . . . . . . . . . . . . . 1 . . . . . . . . . . . . . . . . . . . Used . | . . . . . . . . . . . . . . . . . . . . . . . . . . . . . . . . . . . . . Hacking Detections 76 | . . . 1 . . . 5 2 . 4 . . . 1 10 . 11 . . . . 12 . . . . 2 . 7 6 1 . 3 6 2 3 Full Trace Events 13 | . . . . . . . . . . . . . . 1 2 . 2 . . . . 4 . . . . . . . 1 . . . 1 2 . Feedback Events 1 | . . . . . . . . . . . . . . . . . 1 . . . . . . . . . . . . . . . . . . . Corruption 1 | . . . . . . . . . . . . . . . . . 1 . . . . . . . . . . . . . . . . . . . Feedback Blocked . | . . . . . . . . . . . . . . . . . . . . . . . . . . . . . . . . . . . . . Robot Schematics Acquired 11 | . . . . . . . . . . . . . 4 . . . . . . 7 . . . . . . . . . . . . . . . . Robots Built . | . . . . . . . . . . . . . . . . . . . . . . . . . . . . . . . . . . . . . Authchips . | . . . . . . . . . . . . . . . . . . . . . . . . . . . . . . . . . . . . . Time . | . . . . . . . . . . . . . . . . . . . . . . . . . . . . . . . . . . . . . Total Robot Build Rating . | . . . . . . . . . . . . . . . . . . . . . . . . . . . . . . . . . . . . . Part Schematics Acquired 27 | . . . . . . . . . . 1 . . 14 . 3 . . . . 8 . 1 . . . . . . . . . . . . . . Parts Built 6 | . . . . . . . . . . 2 . . . . 2 . . . . . . 2 . . . . . . . . . . . . . . Authchips 1 | . . . . . . . . . . . . . . . . . . . . . . 1 . . . . . . . . . . . . . . Time 195 | . . . . . . . . . . 117 . . . . 39 . . . . . . 39 . . . . . . . . . . . . . . Total Part Build Rating 42 | . . . . . . . . . . 14 . . . . 14 . . . . . . 14 . . . . . . . . . . . . . . Part Studies Acquired 11 | . . . . . . . . 2 . . . . . . . . . . . . . 2 . . . . 1 . 1 . . . . 5 . . Parts Repaired 4 | . . . . . . . . . . . . . . . . . 1 . . . . 1 . . . . . . 2 . . . . . . . Time 301 | . . . . . . . . . . . . . . . . . 68 . . . . 50 . . . . . . 183 . . . . . . . Parts Recycled . | . . . . . . . . . . . . . . . . . . . . . . . . . . . . . . . . . . . . . Recycled Matter 7 | . . . . . . . . . . . . . . . . . 7 . . . . . . . . . . . . . . . . . . . Retrieved Matter . | . . . . . . . . . . . . . . . . . . . . . . . . . . . . . . . . . . . . . Retrieved Components 1 | . 1 . . . . . . . . . . . . . . . . . . . . . . . . . . . . . . . . . . . Parts Scanalyzed 3 | . . . . . . . 1 . . 1 . . . . . . . . . . . 1 . . . . . . . . . . . . . . Part Schematics Acquired 2 | . . . . . . . . . . 1 . . . . . . . . . . . 1 . . . . . . . . . . . . . . Parts Damaged . | . . . . . . . . . . . . . . . . . . . . . . . . . . . . . . . . . . . . . Bothacking | -11 -10 -10 -9 -9 -9 -8 -8 -7 -7 -7 -7 -7 -7 -6 -6 -6 -6 -6 -6 -6 -5 -5 -5 -5 -5 -4 -4 -4 -4 -4 -4 -4 -4 -3 -2 -1 ------------ Run | Yrd Mat Min Mat Min Exi Min Mat Fac Was Fac Low Low Zio Pro Fac Was Fac Low Low Dat Pro Fac Upp Upp War Pro Fac Was Fac Ext Cet Arc Hub Res Res Acc Used RIF Installer . | . . . . . . . . . . . . . . . . . . . . . . . . . . . . . . . . . . . . . Robots Hacked . | . . . . . . . . . . . . . . . . . . . . . . . . . . . . . . . . . . . . . Non-combat . | . . . . . . . . . . . . . . . . . . . . . . . . . . . . . . . . . . . . . Combat . | . . . . . . . . . . . . . . . . . . . . . . . . . . . . . . . . . . . . . Robot Hacks Applied . | . . . . . . . . . . . . . . . . . . . . . . . . . . . . . . . . . . . . . Relay Couplers Released 7 | . . . . . . . . . . 4 . . . . . . . . . . . . . . . . . . 1 . . . . . 2 . Machine Destruction 3 | . . . . . . . . . . . . . . . . . . . . . . . . . . . . . 1 . . . . . 2 . Programmers 4 | . . . . . . . . . . 4 . . . . . . . . . . . . . . . . . . . . . . . . . . Fabnet Peak Effective % . | . . . . . . . . . . . . . . . . . . . . . . . . . . . . . . . . . . . . . Robots Rewired 32 | . . . . . . . . . . . . . . 11 . . . . . . . . . . 5 . . . . 16 . . . . . . Allies Hacked 3 | . . . . . . . . . . . . . . . . . 3 . . . . . . . . . . . . . . . . . . . Hacks Repelled . | . . . . . . . . . . . . . . . . . . . . . . . . . . . . . . . . . . . . . Allies | -11 -10 -10 -9 -9 -9 -8 -8 -7 -7 -7 -7 -7 -7 -6 -6 -6 -6 -6 -6 -6 -5 -5 -5 -5 -5 -4 -4 -4 -4 -4 -4 -4 -4 -3 -2 -1 -------- Run | Yrd Mat Min Mat Min Exi Min Mat Fac Was Fac Low Low Zio Pro Fac Was Fac Low Low Dat Pro Fac Upp Upp War Pro Fac Was Fac Ext Cet Arc Hub Res Res Acc Total Allies 73 | . . . . 3 . . 1 . . . . . 2 11 . 20 . . . . . . . . 5 . . . . 26 5 . . . . . Largest Group 20 | . . . . 3 . . 1 . . . . . 2 6 2 20 18 . . . . . . . 5 4 . . . 20 19 15 11 . . . Highest-Rated Group 1038 | . . . . 40 . . 10 . . . . . 192 192 61 691 591 . . . . . . . 259 212 . . . 957 1038 879 745 . . . Highest-Rated Ally 159 | . . . . 16 . . 10 . . . . . 96 96 41 50 46 . . . . . . . 64 64 . . . 159 159 96 96 . . . Total Orders 68 | . . . . . . . 2 . . . . . . 2 . . . . . . . 10 . . 35 5 . . . . . . . . 14 . STAY 23 | . . . . . . . 1 . . . . . . 1 . . . . . . . . . . 16 2 . . . . . . . . 3 . FOLLOW 12 | . . . . . . . 1 . . . . . . 1 . . . . . . . . . . 10 . . . . . . . . . . . AID 12 | . . . . . . . . . . . . . . . . . . . . . . . . . 9 3 . . . . . . . . . . EXPLORE 10 | . . . . . . . . . . . . . . . . . . . . . . 2 . . . . . . . . . . . . 8 . RETURN 11 | . . . . . . . . . . . . . . . . . . . . . . 8 . . . . . . . . . . . . 3 . Ally Attacks 670 | . . . . 21 . . . . . . . . . 109 5 8 141 . . . . . . . 39 9 . . . 131 96 40 71 . . . Total Damage 18585 | . . . . 238 . . . . . . . . . 3183 142 193 3248 . . . . . . . 1289 246 . . . 3758 2368 1226 2694 . . . Kills 112 | . . . . 4 . . . . . . . . . 21 1 1 26 . . . . . . . 7 . . . . 25 9 5 13 . . . Allies Corrupted 4 | . . . . . . . . . . . . . . . . 1 2 . . . . . . . . . . . . 1 . . . . . . Allies Melted 1 | . . . . . . . . . . . . . . . . . . . . . . . . . . . . . . . . . . . 1 . Intel | -11 -10 -10 -9 -9 -9 -8 -8 -7 -7 -7 -7 -7 -7 -6 -6 -6 -6 -6 -6 -6 -5 -5 -5 -5 -5 -4 -4 -4 -4 -4 -4 -4 -4 -3 -2 -1 ------- Run | Yrd Mat Min Mat Min Exi Min Mat Fac Was Fac Low Low Zio Pro Fac Was Fac Low Low Dat Pro Fac Upp Upp War Pro Fac Was Fac Ext Cet Arc Hub Res Res Acc Active Infowar (turns) 19182 | . . . . 11 . . . 223 118 516 311 776 1466 1581 1182 635 1887 680 408 111 396 2046 1607 496 1283 82 161 65 540 2 . . . 1252 1052 295 Optics 2 | . . . . . . . . . . . . . . . . . . . . . . . . . . . . . . . . . . 2 . . Sensors 3954 | . . . . . . . . . . . . . . . . . . . . . . 568 1607 496 1283 . . . . . . . . . . . Terrain 2775 | . . . . . . . . . . . . . . . . . . . . . . . . . . . . . 176 2 . . . 1250 1052 295 Structural 5489 | . . . . . . . . . . 516 10 2 . 209 850 106 1807 48 . . . 1476 . . . . . . 465 . . . . . . . Seismic 5528 | . . . . 11 . . . . 62 . 301 774 1466 1343 . . . 632 408 111 396 24 . . . . . . . . . . . . . . Decoding 308 | . . . . . . . . . . . . . . . . . . . . . . . . . . 82 161 65 . . . . . . . . Jamming 3414 | . . . . . . . . 223 118 . . . . 1177 1181 635 80 . . . . . . . . . . . . . . . . . . . Robot Analysis Total 2 | . . . . . . . 1 . . . . . . . . . . . . . . . . . . . . . . 1 . . . . . . Derelict Logs Recovered 14 | . . . . 1 . . . . . . 1 1 2 2 . . . 1 1 . 2 . 1 . . 2 . . . . . . . . . . Drone Launches 35 | . . . . . . . . . . . . . . . . . . . . . . 24 . . . . . . . . . . . . 11 . Drone Recoveries 31 | . . . . . . . . . . . . . . . . . . . . . . 24 . . . . . . . . . . . . 7 . Decoded 0b10 Intel 4 | . . . . . . . . . . . . . . . . . . . . . . . . . . . 4 . . . . . . . . . Emergency Access 1 | . . . . . . . . . . . . . . . . . . . . . . . . . . . 1 . . . . . . . . . Items 2 | . . . . . . . . . . . . . . . . . . . . . . . . . . . 2 . . . . . . . . . Machines 1 | . . . . . . . . . . . . . . . . . . . . . . . . . . . 1 . . . . . . . . . Exploration | -11 -10 -10 -9 -9 -9 -8 -8 -7 -7 -7 -7 -7 -7 -6 -6 -6 -6 -6 -6 -6 -5 -5 -5 -5 -5 -4 -4 -4 -4 -4 -4 -4 -4 -3 -2 -1 ------------- Run | Yrd Mat Min Mat Min Exi Min Mat Fac Was Fac Low Low Zio Pro Fac Was Fac Low Low Dat Pro Fac Upp Upp War Pro Fac Was Fac Ext Cet Arc Hub Res Res Acc Turns Passed 28998 | 30 57 204 64 431 119 104 1839 223 165 1297 311 776 1468 1688 1182 635 1887 723 408 111 472 2057 1658 496 1394 615 161 108 1208 1134 289 2122 421 1561 1257 323 Spaces Moved 17886 | 41 107 375 119 768 235 205 1239 177 134 964 253 383 766 660 792 333 1187 475 279 80 261 1089 731 339 828 414 124 78 782 729 187 176 214 1172 937 253 Core 2711 | 39 107 375 119 768 235 205 863 . . . . . . . . . . . . . . . . . . . . . . . . . . . . . Treads 349 | 2 . . . . . . 347 . . . . . . . . . . . . . . . . . . . . . . . . . . . . . Legs 14826 | . . . . . . . 29 177 134 964 253 383 766 660 792 333 1187 475 279 80 261 1089 731 339 828 414 124 78 782 729 187 176 214 1172 937 253 Wheels . | . . . . . . . . . . . . . . . . . . . . . . . . . . . . . . . . . . . . . Hover . | . . . . . . . . . . . . . . . . . . . . . . . . . . . . . . . . . . . . . Flight . | . . . . . . . . . . . . . . . . . . . . . . . . . . . . . . . . . . . . . Fastest Speed 50 | 50 50 50 50 50 50 50 50 108 105 105 120 120 190 120 120 120 140 140 140 140 140 130 130 130 120 120 113 113 108 108 108 108 108 106 96 100 Average Speed 117 | 55 50 50 50 50 50 50 83 108 107 110 120 188 190 163 120 132 140 142 140 140 149 142 130 130 121 120 113 113 111 108 108 108 108 106 102 100 Slowest Speed 250 | 160 50 50 50 50 50 50 165 120 182 175 120 190 190 190 120 250 140 250 140 140 250 250 140 130 130 120 113 113 113 108 108 108 108 106 168 100 Overloaded Moves . | . . . . . . . . . . . . . . . . . . . . . . . . . . . . . . . . . . . . . Propulsion Burnouts . | . . . . . . . . . . . . . . . . . . . . . . . . . . . . . . . . . . . . . Robots Hopped 1 | . . . . . . . . . . . . . . . . . . . . . . . . . . . . . . . . . . . 1 . Potential Cave-ins 9 | . . . . 2 . . . . . . . . . . . . . . . . . . . . . . . 7 . . . . . . . . Cave-ins Triggered 2 | . . . . . . . . . . . . 1 . . . . . . . . . . . . . . . 1 . . . . . . . . Exploration Rate (%) 50 | 2 29 80 24 98 60 43 61 5 84 28 43 56 81 55 27 93 37 58 44 70 61 37 70 65 81 61 5 60 22 87 56 73 26 25 67 7 Regions Visited 36 Branch Regions 20 Pre-discovered Areas 6 | . . . . . 1 . . . . . . . 1 1 . . . . . 1 1 . . . . 1 . . . . . . . . . . Known Exits Taken 12 | . . . . . . . . . . 1 . . 1 . . . 1 . . . 1 1 1 1 1 1 . . 1 . . . 1 1 . . Unknown Exits Taken 18 | 1 1 1 1 1 1 1 1 . . . 1 1 . 1 . . . 1 1 1 . . . . . . . . . 1 1 1 . . 1 . Scrap Searched 21 | . . 1 . 1 . 1 . . . . . 1 2 1 . . . 3 1 . 5 . 1 1 . 3 . . . . . . . . . . Spaces Dug 239 | . . . . . . . 14 . . 19 . 3 . 4 26 . 22 3 4 . 1 24 23 4 4 6 5 9 27 1 . . 8 17 8 7 Terrain Destroyed 239 | . . . . . . . 14 . . 19 . 3 . 4 26 . 22 3 4 . 1 24 23 4 4 6 5 9 27 1 . . 8 17 8 7 Melee 239 | . . . . . . . 14 . . 19 . 3 . 4 26 . 22 3 4 . 1 24 23 4 4 6 5 9 27 1 . . 8 17 8 7 Projectile . | . . . . . . . . . . . . . . . . . . . . . . . . . . . . . . . . . . . . . AOE . | . . . . . . . . . . . . . . . . . . . . . . . . . . . . . . . . . . . . . Terrain Rammed . | . . . . . . . . . . . . . . . . . . . . . . . . . . . . . . . . . . . . . Walls Destroyed . | . . . . . . . . . . . . . . . . . . . . . . . . . . . . . . . . . . . . . Machines Disabled . | . . . . . . . . . . . . . . . . . . . . . . . . . . . . . . . . . . . . . Actions | -11 -10 -10 -9 -9 -9 -8 -8 -7 -7 -7 -7 -7 -7 -6 -6 -6 -6 -6 -6 -6 -5 -5 -5 -5 -5 -4 -4 -4 -4 -4 -4 -4 -4 -3 -2 -1 --------- Run | Yrd Mat Min Mat Min Exi Min Mat Fac Was Fac Low Low Zio Pro Fac Was Fac Low Low Dat Pro Fac Upp Upp War Pro Fac Was Fac Ext Cet Arc Hub Res Res Acc Total 24847 | 46 109 391 123 811 236 205 1949 199 153 1098 260 407 777 1241 955 526 1347 498 285 79 317 1448 1366 382 1205 505 141 91 1053 1034 253 2090 342 1426 1189 310 Wait 5278 | . 3 14 1 17 . . 585 5 13 32 7 . 2 435 81 161 86 4 . . 32 210 561 32 320 47 . 1 174 121 37 1881 83 152 144 37 Move 17849 | 40 106 374 118 767 234 204 1238 177 133 963 252 382 765 659 792 332 1186 474 278 79 260 1088 730 338 827 413 124 76 781 728 186 175 213 1171 934 252 Hop 1 | . . . . . . . . . . . . . . . . . . . . . . . . . . . . . . . . . . . 1 . Pick Up 158 | 4 . 1 1 5 1 . 22 4 . 10 . 1 2 4 7 5 11 . . . 3 8 . . 7 1 2 2 13 11 4 5 . 11 13 . Fast Attach 74 | 2 . . . . . 1 11 . 2 6 . 2 1 7 2 4 1 1 . . 1 6 2 . 2 . 2 . 3 2 . 8 . 1 7 . Attach 74 | . . . 2 1 . . 9 4 4 6 . . . 3 3 2 1 . . . . 9 3 2 1 . 2 . 5 1 . 1 1 3 7 4 Detach 17 | . . . . 1 . . 2 . . 2 . 1 . . 1 . . . . . . 3 2 . 1 . 1 . 1 . . . . 1 1 . Swap 192 | . . . . . . . 1 1 1 10 1 2 3 17 11 2 8 5 . . 2 15 . . 5 8 3 . 13 13 7 . 8 22 32 2 Drop 150 | . . 1 1 3 1 . 13 2 . 6 . . 3 16 8 14 13 . . . 3 7 . . 2 1 2 2 5 7 5 9 . 6 19 1 Fire . | . . . . . . . . . . . . . . . . . . . . . . . . . . . . . . . . . . . . . Melee 786 | . . . . . . . 67 6 . 62 . 19 1 23 50 6 41 14 7 . 16 101 68 10 6 23 5 9 58 30 14 11 37 59 29 14 Ram 10 | . . 1 . 8 . . 1 . . . . . . . . . . . . . . . . . . . . . . . . . . . . . Kick 2 | . . . . . . . . . . 1 . . . . . . . . . . . 1 . . . . . . . . . . . . . . Crush 9 | . . . . 9 . . . . . . . . . . . . . . . . . . . . . . . . . . . . . . . . Escape Stasis 3 | . . . . . . . . . . . . . . . . . . . . . . . . . . . . 1 . 2 . . . . . . Rewire 242 | . . . . . . . . . . . . . . 77 . . . . . . . . . . 34 12 . . . 119 . . . . . . Trap . | . . . . . . . . . . . . . . . . . . . . . . . . . . . . . . . . . . . . . Miscellaneous 2 | . . . . . . . . . . . . . . . . . . . . . . . . . . . . . . . . . . . 2 . Route ------- -11/Scrapyard -10/Materials -10/Mines (discovered 2 exits: *Mat / [*Sub]) -9/Materials (discovered 2 exits: [*Min] / [*Sto]) -9/Mines (discovered 4 exits: *Mat x2 / *Exi / *Zio) -9/Exiles -8/Mines -8/Materials (discovered 2 exits: *Fac x2) -7/Factory -7/Waste -7/Factory (discovered 2 exits: *Low x2) -7/Lower Caves -7/Lower Caves (discovered 2 exits: *Fac / *Zio) -7/Zion -6/Proximity Caves -6/Factory (discovered 4 exits: *Fac x2 / *Low x2) -6/Waste -6/Factory (discovered 5 exits: *Fac x3 / *Low x2) -6/Lower Caves -6/Lower Caves -6/Data Miner -5/Proximity Caves -5/Factory (discovered 3 exits: *Fac x2 / *Upp) -5/Upper Caves -5/Upper Caves (discovered 2 exits: *Fac / *War) -5/Warlord -4/Proximity Caves -4/Factory -4/Waste -4/Factory (discovered 9 exits: *Res x4 / *Upp x2 / *Ext x2 / Arm) -4/Extension (discovered 2 exits: *Res / *Cet) -4/Cetus (discovered 2 exits: *Res / [*Arc]) -4/Archives (discovered 3 exits: *Res / *Hub x2) -4/Hub_04(d) (discovered 4 exits: *Res x4) -3/Research (discovered 4 exits: *Res x3 / *Qua) -2/Research (discovered 4 exits: *Acc x3 / *Tes) -1/Access To Epsilon Eridani History --------- Turn | Location | Event 14 | -11/Scrapyard | Discovered new exit (range 16) 31 | -11/Scrapyard | Entered Materials 85 | -10/Materials | Discovered new exit (range 6) 88 | -10/Materials | Entered Mines 139 | -10/Mines | YI-UF0 nonchalantly dropped a Grenade Launcher on the ground 252 | -10/Mines | Discovered new exit (range 6) 288 | -10/Mines | Discovered new exit (range 10) 292 | -10/Mines | Entered Materials 292 | -9/Materials | Evolved 2 slots: Propulsion x2 298 | -9/Materials | Discovered new exit (range 14) 317 | -9/Materials | Build established: Mutant 352 | -9/Materials | Discovered new exit (range 6) 356 | -9/Materials | Entered Mines 357 | -9/Mines | Assisted by bots powering up and referring to "LRC-V3" 422 | -9/Mines | Received a Rocket Launcher from a helpful Derelict 422 | -9/Mines | Discovered new exit (range 5) 435 | -9/Mines | Assembled infested the area 440 | -9/Mines | Assisted by a Guerilla fighting off Assembled 482 | -9/Mines | Discovered new exit (range 7) 492 | -9/Mines | Lost 4 allies 505 | -9/Mines | A Derelict revealed a hidden shortcut to a safe place 523 | -9/Mines | Learned Materials machine intel 785 | -9/Mines | Deemed a non-threat by the Exiles lab entrance 785 | -9/Mines | Discovered new exit (range 5) 787 | -9/Mines | Entered Exiles 800 | -9/Exiles | Met 8R-AWN 808 | -9/Exiles | Met EX-HEX 822 | -9/Exiles | Met EX-BIN 829 | -9/Exiles | Aligned with FarCom system 829 | -9/Exiles | Given EX-Vault access code 843 | -9/Exiles | Opened EX-Vault 855 | -9/Exiles | Warned to stay clear of 0b10 Research branches 871 | -9/Exiles | Met EX-DEC 873 | -9/Exiles | Learned location of Zion (-7) 900 | -9/Exiles | Discovered new exit (range 12) 906 | -9/Exiles | Entered Mines 1005 | -8/Mines | Discovered new exit (range 4) 1010 | -8/Mines | Entered Materials 1010 | -8/Materials | Evolved 2 slots: Utility x2 1011 | -8/Materials | Loaded intel: 53 machine locations 1115 | -8/Materials | Discovered new exit (range 15) 1387 | -8/Materials | Discovered new exit (range 4) 2494 | -8/Materials | Build established: Scavenger-Mutant 2849 | -8/Materials | Entered Factory 2849 | -7/Factory | Evolved 2 slots: Power x1, Utility x1 2933 | -7/Factory | Discovered new exit (range 15) 2949 | -7/Factory | Identified exit to Lower Caves 3072 | -7/Factory | Sucked down chute 3072 | -7/Factory | Entered Waste 3087 | -7/Waste | EMP discharged 3092 | -7/Waste | Spotted C-40 Crusher 3146 | -7/Waste | Spotted C-40 Crusher 3158 | -7/Waste | Crushed by Compactor (1 part destroyed, 2 dropped) 3161 | -7/Waste | Crushed by Compactor (1 part destroyed, 1 dropped) 3164 | -7/Waste | Crushed by Compactor (1 part destroyed, 1 dropped) 3177 | -7/Waste | Spotted C-40 Crusher 3179 | -7/Waste | Spotted C-40 Crusher 3185 | -7/Waste | Crushed by Compactor (1 part destroyed, 2 dropped) 3187 | -7/Waste | EMP discharged 3187 | -7/Waste | System corruption reached 10% 3197 | -7/Waste | Spotted C-40 Crusher 3200 | -7/Waste | Spotted C-40 Crusher 3216 | -7/Waste | Lost 6 parts (1p4n1u) 3226 | -7/Waste | Discovered new exit (range 10) 3237 | -7/Waste | Entered Factory 3377 | -7/Factory | Fabricated Rnf. Antimatter Reactor? 3687 | -7/Factory | Build established: Gladiator 4169 | -7/Factory | Build established: Scavenger-Gladiator 4457 | -7/Factory | Garrison activated, responded to threat 4534 | -7/Factory | Entered Lower Caves 4721 | -7/Lower Caves | Encountered a Warlord checkpoint 4732 | -7/Lower Caves | Learned 8 Factory zone layouts 4750 | -7/Lower Caves | Attracted the attention of an 0b10 checkpoint 4829 | -7/Lower Caves | Discovered new exit (range 10) 4831 | -7/Lower Caves | Build established: Gladiator 4845 | -7/Lower Caves | Entered another Lower Caves area 5005 | -7/Lower Caves | Learned 8 Factory zone layouts 5011 | -7/Lower Caves | Discovered new exit (range 10) 5109 | -7/Lower Caves | Encountered a Warlord checkpoint 5458 | -7/Lower Caves | Crushed by falling debris 5567 | -7/Lower Caves | Discovered new exit (range 16) 5621 | -7/Lower Caves | Entered Zion 5654 | -7/Zion | Given A8's code to call for help 5684 | -7/Zion | System corruption cleaned by Quarantine Array 6205 | -7/Zion | Identified exit to Proximity Caves 6515 | -7/Zion | Learned 4 Factory zone layouts 6950 | -7/Zion | Acquired unknown access codes intercepted by a Zionite 7059 | -7/Zion | Enhanced Grunt warped into view, answering call for help 7064 | -7/Zion | Enhanced Grunt warped into view, answering call for help 7089 | -7/Zion | Entered Proximity Caves 7089 | -6/Proximity Caves | Accompanied by 2 allies 8233 | -6/Proximity Caves | Snuck into a huge 0b10 base via the rear entrance 8333 | -6/Proximity Caves | Found Prototype Device 8333 | -6/Proximity Caves | Identified Exp. Thermal Shield 8397 | -6/Proximity Caves | Discovered new exit (range 5) 8477 | -6/Proximity Caves | Lost 9 allies 8777 | -6/Proximity Caves | Entered Factory 8777 | -6/Factory | Accompanied by 2 allies 8777 | -6/Factory | Evolved 2 slots: Utility x1, Weapon x1 8778 | -6/Factory | Identified exit to Factory 8799 | -6/Factory | Build established: Scavenger-Gladiator 9018 | -6/Factory | Fabricated Rnf. Antimatter Reactor? 9019 | -6/Factory | Identified exit to Lower Caves 9579 | -6/Factory | Discovered exit to Factory (range 15) 9644 | -6/Factory | Central database locked down 9959 | -6/Factory | Sucked down chute 9959 | -6/Factory | Entered Waste 9960 | -6/Waste | Joined by Warlord forces that had cleared the area 10109 | -6/Waste | A Compactor rumbled back to life 10111 | -6/Waste | Allies destroyed C-40 Crusher 10364 | -6/Waste | Discovered new exit (range 11) 10369 | -6/Waste | Build established: Gladiator 10594 | -6/Waste | Entered Factory 10594 | -6/Factory | Accompanied by 18 allies 10962 | -6/Factory | Garrison activated, responded to threat 10984 | -6/Factory | Lost 4 allies 11097 | -6/Factory | Discovered exit to Factory (range 8) 11436 | -6/Factory | Discovered exit to Factory (range 7) 11800 | -6/Factory | Discovered exit to Factory (range 5) 12066 | -6/Factory | Repaired Hvy. Armored Exoskeleton 12344 | -6/Factory | First assault squad dispatched 12481 | -6/Factory | Entered Lower Caves 12483 | -6/Lower Caves | Attracted the attention of an 0b10 checkpoint 12524 | -6/Lower Caves | Found DCF Scrap (14 items) 12732 | -6/Lower Caves | Spotted B-75 Beast 13183 | -6/Lower Caves | Discovered new exit (range 15) 13204 | -6/Lower Caves | Entered another Lower Caves area 13342 | -6/Lower Caves | Spotted B-75 Beast 13549 | -6/Lower Caves | Learned location of 1 exit from Factory 13608 | -6/Lower Caves | Discovered new exit (range 3) 13612 | -6/Lower Caves | Entered Data Miner 13612 | -6/Data Miner | Discovered new exit (range 6) 13639 | -6/Data Miner | Met Data Miner 13673 | -6/Data Miner | Learned location of Section 7 (-2) 13673 | -6/Data Miner | Acquired the access code to Warlord's prototype stash 13685 | -6/Data Miner | Received God Mode back door access code from Data Miner 13723 | -6/Data Miner | Entered Proximity Caves 13778 | -5/Proximity Caves | Learned Factory emergency access door positions 13813 | -5/Proximity Caves | Spotter reported a threat 13846 | -5/Proximity Caves | Attracted the attention of an 0b10 checkpoint 13850 | -5/Proximity Caves | Spotter reported a threat 13866 | -5/Proximity Caves | Spotter reported a threat 13897 | -5/Proximity Caves | Spotted B-75 Beast 14145 | -5/Proximity Caves | Learned location of Armory (-4) 14176 | -5/Proximity Caves | Discovered exit to Factory (range 14) 14195 | -5/Proximity Caves | Entered Factory 14195 | -5/Factory | Evolved 2 slots: Propulsion x1, Utility x1 14196 | -5/Factory | Identified exit to Upper Caves 14197 | -5/Factory | Identified exit to Factory 14281 | -5/Factory | Discovered exit to Factory (range 27) 14300 | -5/Factory | Repaired Imp. Heavy Armor Plating 14495 | -5/Factory | Search patrols dispatched 14684 | -5/Factory | Incoming investigation squad redirected 14795 | -5/Factory | Search patrols dispatched 15795 | -5/Factory | Watched by a mysterious "MATRIX" hacker. 16085 | -5/Factory | Fabricated Nanoactuators (x2) 16252 | -5/Factory | Entered Upper Caves 16867 | -5/Upper Caves | Lost 4 parts (2n1u1w) 17067 | -5/Upper Caves | Attracted the attention of an 0b10 checkpoint 17864 | -5/Upper Caves | Spotted B-75 Beast 17899 | -5/Upper Caves | Discovered new exit (range 3) 17903 | -5/Upper Caves | Learned Factory stockpile data 17908 | -5/Upper Caves | Identified exit to Upper Caves 17910 | -5/Upper Caves | Entered another Upper Caves area 17911 | -5/Upper Caves | Encountered a Warlord checkpoint 17951 | -5/Upper Caves | Discovered exit to Factory (range 8) 18269 | -5/Upper Caves | Spotted B-75 Beast 18382 | -5/Upper Caves | Discovered new exit (range 16) 18400 | -5/Upper Caves | Identified exit to Warlord 18406 | -5/Upper Caves | Entered Warlord 18451 | -5/Warlord | System corruption cleaned by Quarantine Array 18616 | -5/Warlord | Opened Warlord's prototype stash 18635 | -5/Warlord | Found Prototype Reactor 18646 | -5/Warlord | Found Prototype Processor 18994 | -5/Warlord | Visited the Vortex Lab 19009 | -5/Warlord | Warlord's base attacked by MAIN.C 19062 | -5/Warlord | Met Warlord 19138 | -5/Warlord | Build established: Commander-Gladiator 19318 | -5/Warlord | Lost 3 allies 19359 | -5/Warlord | Warlord forces counterattacked 19426 | -5/Warlord | Lost 8 allies 19439 | -5/Warlord | Spotted Striker 19445 | -5/Warlord | Spotted Executioner 19449 | -5/Warlord | Allies destroyed Striker 19454 | -5/Warlord | Spotted Striker 19465 | -5/Warlord | Allies destroyed Executioner 19490 | -5/Warlord | Lost 6 allies 19671 | -5/Warlord | Spotted Executioner 19684 | -5/Warlord | Warlord base infiltrated, sounded retreat 19746 | -5/Warlord | Spotted Executioner 19746 | -5/Warlord | Spotted Executioner 19756 | -5/Warlord | Spotted Executioner 19767 | -5/Warlord | Discovered new exit (range 15) 19786 | -5/Warlord | Identified exit to Proximity Caves 19800 | -5/Warlord | Entered Proximity Caves 19800 | -4/Proximity Caves | Accompanied by 4 allies 19966 | -4/Proximity Caves | Attracted the attention of an 0b10 checkpoint 20253 | -4/Proximity Caves | Build established: Gladiator 20396 | -4/Proximity Caves | Discovered exit to Factory (range 13) 20402 | -4/Proximity Caves | Learned Research emergency access door positions 20415 | -4/Proximity Caves | Entered Factory 20415 | -4/Factory | Evolved 2 slots: Propulsion x1, Utility x1 20416 | -4/Factory | Identified exit to Extension 20449 | -4/Factory | Identified Exp. Core Analyzer 20498 | -4/Factory | Incoming investigation squad redirected 20576 | -4/Factory | Sucked down chute 20576 | -4/Factory | Entered Waste 20578 | -4/Waste | Found Broken Adv. Force Booster 20585 | -4/Waste | Found Broken Adv. Force Booster 20588 | -4/Waste | Spotted C-40 Crusher 20591 | -4/Waste | EMP discharged 20616 | -4/Waste | Spotted C-40 Crusher 20641 | -4/Waste | Crushed by falling debris 20645 | -4/Waste | Spotted C-40 Crusher 20667 | -4/Waste | Discovered new exit (range 16) 20673 | -4/Waste | Spotted C-40 Crusher 20684 | -4/Waste | Entered Factory 20802 | -4/Factory | Discovered new exit (range 7) 20822 | -4/Factory | Discovered new exit (range 16) 20823 | -4/Factory | Identified exit to Research 21116 | -4/Factory | Spotted B-86 Titan 21256 | -4/Factory | Discovered new exit (range 15) 21465 | -4/Factory | System corruption reached 10% 21531 | -4/Factory | Identified exit to Upper Caves 21531 | -4/Factory | Identified exit to Armory 21771 | -4/Factory | Repaired Broken Adv. Force Booster 21852 | -4/Factory | Repaired Shock Maul 21892 | -4/Factory | Entered Extension 22102 | -4/Extension | Rescued a captive Derelict 22166 | -4/Extension | Rescued a captive Derelict 22168 | -4/Extension | Rescued a captive Derelict 22179 | -4/Extension | Rescued A7 22206 | -4/Extension | Rescued a captive Derelict 22247 | -4/Extension | Rescued a captive Derelict 22247 | -4/Extension | Rescued a captive Derelict 22254 | -4/Extension | Incoming investigation squad redirected 22344 | -4/Extension | Build established: Commander-Gladiator 22503 | -4/Extension | Spotted B-86 Titan 22528 | -4/Extension | Allies destroyed B-86 Titan 22547 | -4/Extension | Spotted B-86 Titan 22566 | -4/Extension | Allies destroyed B-86 Titan 22596 | -4/Extension | Lost 4 allies 22601 | -4/Extension | Rescued a captive Derelict 22719 | -4/Extension | Rescued a captive Derelict 22721 | -4/Extension | Rescued a captive Derelict 22941 | -4/Extension | Discovered exit to Research (range 10) 22942 | -4/Extension | Discovered new exit (range 6) 23026 | -4/Extension | Entered Cetus 23026 | -4/Cetus | Accompanied by 19 allies (A7) 23031 | -4/Cetus | Acquired a Cetus Manufacturing Module code from A7 23037 | -4/Cetus | Spotted Cetus Guard 23037 | -4/Cetus | Spotted Cetus Guard 23042 | -4/Cetus | Spotted Cetus Guard 23043 | -4/Cetus | Spotted Cetus Guard 23055 | -4/Cetus | Allies destroyed Cetus Guard 23073 | -4/Cetus | Allies destroyed Cetus Guard 23074 | -4/Cetus | Destroyed Cetus Guard 23081 | -4/Cetus | Allies destroyed Cetus Guard 23109 | -4/Cetus | Lost 6 allies 23128 | -4/Cetus | Started Cetus Manufacturing Module 23145 | -4/Cetus | Discovered new exit (range 16) 23153 | -4/Cetus | Manufactured an Enhanced Grunt 23171 | -4/Cetus | Spotted Cetus Guard 23171 | -4/Cetus | Spotted Cetus Guard 23173 | -4/Cetus | Spotted Cetus Guard 23178 | -4/Cetus | Manufactured an Enhanced Grunt 23185 | -4/Cetus | Spotted Cetus Guard 23188 | -4/Cetus | Allies destroyed Cetus Guard 23188 | -4/Cetus | Allies destroyed Cetus Guard 23194 | -4/Cetus | Allies destroyed Cetus Guard 23199 | -4/Cetus | Allies destroyed Cetus Guard 23200 | -4/Cetus | Discovered exit to Research (range 16) 23203 | -4/Cetus | Manufactured an Enhanced Grunt 23215 | -4/Cetus | Met Revision 17 23228 | -4/Cetus | Manufactured an Enhanced Grunt 23253 | -4/Cetus | Manufactured an Enhanced Grunt 23309 | -4/Cetus | Murdered A7 23311 | -4/Cetus | Extracted ID and sensor layout for unrecognized location from A7's data core 23315 | -4/Cetus | Entered Archives 23315 | -4/Archives | Accompanied by 15 allies 23351 | -4/Archives | Discovered new exit (range 15) 23369 | -4/Archives | Lost 3 allies 23378 | -4/Archives | Discovered new exit (range 16) 23519 | -4/Archives | Discovered exit to Research (range 15) 25437 | -4/Archives | Entered Hub_04(d) 25437 | -4/Hub_04(d) | Accompanied by 11 allies 25617 | -4/Hub_04(d) | Network Hub disabled 25646 | -4/Hub_04(d) | Incoming investigation squad redirected 25676 | -4/Hub_04(d) | Lost 9 allies 25680 | -4/Hub_04(d) | Network Hub disabled 25692 | -4/Hub_04(d) | Network Hub disabled 25763 | -4/Hub_04(d) | Destroyed 9 combat bots 25853 | -4/Hub_04(d) | Spotted Lightning 25858 | -4/Hub_04(d) | Spotted Lightning 25858 | -4/Hub_04(d) | Spotted Lightning 25858 | -4/Hub_04(d) | Entered Research 25858 | -3/Research | Evolved 2 slots: Propulsion x1, Utility x1 25941 | -3/Research | Discovered new exit (range 24) 26058 | -3/Research | Revision forces began assault on 0b10 26143 | -3/Research | Met up with Revision 17++ 26147 | -3/Research | Build established: Scavenger-Gladiator 26150 | -3/Research | Identified exit to Quarantine 26421 | -3/Research | Identified exit to Research 26558 | -3/Research | Research terminal network offline 26645 | -3/Research | Lost 3 allies 26711 | -3/Research | Spotted Striker 26736 | -3/Research | Spotted Executioner 26755 | -3/Research | Found Prototype Processor 26755 | -3/Research | Identified Exp. Targeting Computer 26757 | -3/Research | Lost 3 allies 26785 | -3/Research | Spotted Striker 26792 | -3/Research | Spotted Striker 26800 | -3/Research | Destroyed Striker 26822 | -3/Research | Lost 4 allies 27415 | -3/Research | Lost 4 allies 27419 | -3/Research | Entered another Research area 27419 | -2/Research | Warlord forces began assault on 0b10 27419 | -2/Research | Evolved 2 slots: Power x1, Propulsion x1 27529 | -2/Research | Research machine network offline 27607 | -2/Research | Discovered new exit (range 21) 27627 | -2/Research | Identified exit to Testing 27628 | -2/Research | Met up with Warlord 27737 | -2/Research | Found Prototype Device 27737 | -2/Research | Identified Thermal Barrier 27814 | -2/Research | Borebot progress halted 27866 | -2/Research | Spotted Striker 27957 | -2/Research | Discovered new exit (range 122) 27984 | -2/Research | Spotted Striker 28029 | -2/Research | Discovered new exit (range 127) 28034 | -2/Research | Discovered new exit (range 48) 28252 | -2/Research | Borebot progress halted 28298 | -2/Research | Found Prototype Processor 28298 | -2/Research | Identified Exp. Melee Analysis Suite 28340 | -2/Research | Spotted Executioner 28340 | -2/Research | Spotted Executioner 28343 | -2/Research | Destroyed Executioner 28357 | -2/Research | Found Exp. Melee Analysis Suite 28397 | -2/Research | Lost 3 allies 28405 | -2/Research | Spotted Executioner 28526 | -2/Research | Borebot progress halted 28641 | -2/Research | Found Prototype Device 28641 | -2/Research | Identified Adv. Kinecellerator 28676 | -2/Research | Entered Access 28676 | -1/Access | Evolved 2 slots: Utility x2 28793 | -1/Access | Identified exit to Surface 28999 | *** | Escaped! Last Messages --------------- 28985_ Slug penetrates Reinforced Barrier. 28985_ Slug penetrates Terminal. 28985_ R-10 Processor collects KE Penetrator. 28986_ Discarded Adv. Terrain Scan Processor. 28987_ K-01 Serf collects debris. 28988_ Penetrated by Slug. 28988_ W-44 Eye sends out distress signal. 28989_ Penetrated by Slug. 28989_ Slug penetrates Terminal. 28989_ R-10 Processor collects Biometal Leg+. 28990_ K-01 Serf collects debris. 28991_ Penetrated by Slug. 28992_ R-10 Processor collects Adv. Phase Shifter. 28993_ Penetrated by Slug. 28993_ The Access Shell folds into the floor. 28994_ K-01 Serf collects debris. 28996_ Penetrated by Slug. 28998_ Slug penetrates Sealed Heavy Doors. 28999_ K-01 Serf collects debris. Map ----- +----------------------------------------------------+ | ??????????????? ? ? ? # ######?### | | ???????????????? ???? + ########## | | ??????????????? ???##?? ^ ?? # # | | ???????????????##??## ? ^ ? # ! # | | ?????????????#?#??#???##???#### ######## | | ?????????????#?###??# #?##?###? ? # " | | ???????????????#?#### #?#####?# ?? # """" | | ?????????????????#??#+???##?##?#?##?## # """"" | | ????????????#?#??##? ? ? + + """"" | | ?????????????#?????# ? ?? ??# # """" | | ??????????????????#?? ? ? ? # # " | | ?????????????###?###? ?? ? ? ?? # # | | ??????????????##??#? ? ?? ? ?? ?# # | | ??????????????????##?? ?? ? ?# # | | ???????????????#?### ??# h########## | | ????????????????##?#?##??######??##### ########## | | ????????????????#######?##?###?##?#?## ###?####?? | | ?????????????????????#??#####??###??##% #####?#### | | ????????????????????????###?#?######## #########? | | ????????????????#?#?#?####?######?#### ###?##?### | | ????????????????????########## #######h #???#?##?? | | ???????????????? "??" ###??###?# | | ??????????????BB??"?" #????##?## | | ??????????????BB ???" #??######? | | ???????????????????"" ######?##? | | ?????????????????"??" "@ A####??#?#? | | ???????????????? "??" "" ! k #?#??#??#? | | ????????????????????" h =h*#?#??#?#?? | | ??????????????BB????" h A## ? ?? | | ??????????????BB??"?" """ """R ##? ? ?? | | ???????????????????"" """T"""w #?? ????? | | ????????????????????########## ####### #? ???? | | ???????????????????#???????#?###?#?###H ## ? ? ? | | ????????????????????#??##?#?????#????# ## ? ? ??? | | ????????????????????#????????##????### ## ? ??? | | ??????????????????????????####??##??#? ##?? ? ? | | ????????????????????#????#?#??#???###? ##? ?? ? ? | | ????????????????????#??????#???#????## ##?+??#??? | | ???????????????????????? ???c? ?? ??? ?????? ?? | | ??????????????????????#??cc??????? ??? ????? ??? | | ???????????????????????????#????#?????+##?#?????#? | | ????????????????????????? ????#????? ? ?? ?????? | | ?????????????????????????????????#???????????????? | | ?????????????????????????????????????????????????? | | ??????????????????????????????????##???????"?????? | | ??????????????????????????????????#? ? ??"???????? | | ?????????????????????????????????? ??????????????? | | ?????????????????????????????????????????"???????? | | ?????????????????????????????????????????????????? | | ?????????????????????????????????????????????????? | +----------------------------------------------------+ Best States ------------- Heat Dissipation 52 Energy Generation 67 Energy Capacity 725 Matter Stores 300 Matter Capacity 300 Sight Range 16 Robot Scan Range 15 Terrain Scan Range 24 Terrain Scan Density 210 Jamming Range 12 Power Amplification 40 Armor Coverage 750 Resistance: TH 50 Power Shielding 15 Utility Shielding 66 Weapon Shielding 66 Melee Speed Boost 50 Evasion (%) 70 Melee Accuracy 32 Core Analysis 6 Armor Integrity Analysis 30 Recoil Reduction 4 Force Boost 40 Offensive Hacking 28 Defensive Hacking 12 Authchip Count 1 Item Schematics ----------------- Imp. Weapon Shielding | -7/Factory | Scanalyzed Chainsword | -7/Zion | Archive Thermal Shield | -7/Zion | Archive Dynamic Insulation System | -7/Zion | Archive Imp. Actuator Array | -7/Zion | Archive Arm. Huge Wheel | -7/Zion | Archive Arm. Leg | -7/Zion | Archive System Restoration Module | -7/Zion | Archive Point Defense System | -7/Zion | Archive Matter Compressor | -7/Zion | Archive Imp. Medium Armor Plating | -7/Zion | Archive Thermic Laser | -7/Zion | Archive Adv. Melee Analysis Suite | -7/Zion | Archive Med. Treads | -7/Zion | Archive Mass Driver | -7/Zion | Archive Flexi-carbon Leg | -6/Factory | Hacked Nanoactuators | -6/Factory | Hacked Lyr. Heavy Armor Plating | -6/Factory | Hacked Combat Drone Bay | -6/Data Miner | Free Lgt. Regenerative Plating | -6/Data Miner | Free Enh. Flexi-carbon Leg | -6/Data Miner | Free Exp. Heat Sink | -6/Data Miner | Free Hvy. Gatling Laser | -6/Data Miner | Free Hvy. Siege Treads | -6/Data Miner | Free Adv. Cryofiber Web | -6/Data Miner | Free Hardcell Cannon | -6/Data Miner | Free Hvy. Armored Exoskeleton | -5/Factory | Scanalyzed Robot Schematics ------------------ K-01 Serf | -7/Zion | Archive M-14 Sweeper | -7/Zion | Archive W-25 Informer | -7/Zion | Archive X-82 Rainmaker | -7/Zion | Archive B-48 Gladiator | -6/Data Miner | Free S-27 Virus | -6/Data Miner | Free D-63 Destroyer | -6/Data Miner | Free R-10 Processor | -6/Data Miner | Free Y-64 Sentinel | -6/Data Miner | Free M-22 Extractor | -6/Data Miner | Free M-36 Artificer | -6/Data Miner | Free Fabricated ------------ Rnf. Antimatter Reactor | x2 | -7/Factory | Preloaded Rnf. Antimatter Reactor | x2 | -6/Factory | Preloaded Nanoactuators | x2 | -5/Factory | Authchip Repaired ---------- Hvy. Armored Exoskeleton | 47% | -6/Factory Imp. Heavy Armor Plating | 35% | -5/Factory Adv. Force Booster | 66% | -4/Factory | Broken Shock Maul | 8% | -4/Factory Studied --------- Imp. Carbon-fiber Leg | -7/Factory | Hacked Chainsword | -7/Factory | Hacked Med. Armored Exoskeleton | -5/Factory | Hacked Power Sword | -5/Factory | Hacked Rnf. Antimatter Reactor | -4/Factory | Hacked Hvy. Armored Exoskeleton | -4/Factory | Hacked Powered Hammer | -3/Research | Hacked Myomer Leg | -3/Research | Hacked Biometal Leg | -3/Research | Hacked Enh. Force Lance | -3/Research | Hacked Imp. Thunder Leg | -3/Research | Hacked Alien Tech Used ----------------- None Achievements -------------- None Challenges ------------ None Game ------ Seed NeutronNetworkedSink Manual? 0 Play Time 04:22:54 Cumulative 681.7 hours Start 2026.03.30 @ 19:09:54 End 2026.03.31 @ 17:03:50 Sessions 13 Manual Loads 0 Difficulty Rogue Special Mode None Game No. 369 Rogue 369 Adventurer 0 Explorer 0 Win Type 0 Total 30 Types 15/1/6/2/1/1/1/2/1/0 Lore% 92 Gallery% 86 Achievement% 78 Wizard Run 0 Options --------- Layout 1 ASCII 0 Keyboard 0 Movement Numpad Keybinds 0 Fullscreen 2 Font 24/Smallcaps Map View 50x40 Zoom Use 0% Tactical HUD 1 Map Filters NONE Filters NONE Steam 1 RUN: c8b738f2-8396-47dc-8213-ab8c00155675